Workbook

Sheet 대덕구주민수현황
A1: 대전광역시 대덕구 주민등록 인구현황
A2: [ 2025. 8. 31. 기준 ]
A3: 동 별 | B3: 주 민 수 및 세 대 수 | I3: 10대 이하 (0세 ~ 19세) | L3: 20대 | O3: 30대 | R3: 40대 | U3: 50대 | X3: 60대 | AA3: 70대 이상 | AD3: 65세 이상
B4: 계 | C4: 전월계 | D4: 증감 | E4: 증감비 (%) | F4: 남 | G4: 여 | H4: 세대수 | I4: 계 | J4: 전월계 | K4: 증감 | L4: 계 | M4: 전월계 | N4: 증감 | O4: 계 | P4: 전월계 | Q4: 증감 | R4: 계 | S4: 전월계 | T4: 증감 | U4: 계 | V4: 전월계 | W4: 증감 | X4: 계 | Y4: 전월계 | Z4: 증감 | AA4: 계 | AB4: 전월계 | AC4: 증감 | AD4: 계 | AE4: 전월계 | AF4: 증감
A5: 계 | B5: =SUM(B6:B17) -> 166550 | C5: =SUM(C6:C17) -> 166691 | D5: =SUM(D6:D17) -> -141 | E5: =SUM(E6:E17) -> -2.082640074 | F5: =SUM(F6:F17) -> 84562 | G5: 81988 | H5: 81128 | I5: =SUM(I6:I17) -> 21360 | J5: 21436 | K5: =SUM(K6:K17) -> -76 | L5: =SUM(L6:L17) -> 19331 | M5: =SUM(M6:M17) -> 19479 | N5: =SUM(N6:N17) -> -148 | O5: =SUM(O6:O17) -> 19587 | P5: =SUM(P6:P17) -> 19522 | Q5: =SUM(Q6:Q17) -> 65 | R5: =SUM(R6:R17) -> 21648 | S5: =SUM(S6:S17) -> 21740 | T5: =SUM(T6:T17) -> -92 | U5: =SUM(U6:U17) -> 32142 | V5: =SUM(V6:V17) -> 32174 | W5: =SUM(W6:W17) -> -32 | X5: =SUM(X6:X17) -> 29608 | Y5: =SUM(Y6:Y17) -> 29581 | Z5: =SUM(Z6:Z17) -> 27 | AA5: =SUM(AA6:AA17) -> 22874 | AB5: =SUM(AB6:AB17) -> 22759 | AC5: =SUM(AC6:AC17) -> 115 | AD5: =SUM(AD6:AD17) -> 36687 | AE5: =SUM(AE6:AE17) -> 36464 | AF5: =SUM(AF6:AF17) -> 223
A6: 오 정 동 | B6: =SUM(F6:G6) -> 13285 | C6: 13331 | D6: =B6-C6 -> -46 | E6: =(D6/B6)*100 -> -0.346255175 | F6: 6948 | G6: 6337 | H6: 7461 | I6: 1246 | J6: 1261 | K6: =I6-J6 -> -15 | L6: 2022 | M6: 2019 | N6: =L6-M6 -> 3 | O6: 1307 | P6: 1316 | Q6: =O6-P6 -> -9 | R6: 1416 | S6: 1434 | T6: =R6-S6 -> -18 | U6: 2251 | V6: 2269 | W6: =U6-V6 -> -18 | X6: 2739 | Y6: 2745 | Z6: =X6-Y6 -> -6 | AA6: 2304 | AB6: 2287 | AC6: =AA6-AB6 -> 17 | AD6: 3656 | AE6: 3641 | AF6: =AD6-AE6 -> 15
A7: 대 화 동 | B7: 5293 | C7: 5328 | D7: -35 | E7: -0.6612507085 | F7: 2762 | G7: 2531 | H7: 2854 | I7: 470 | J7: 467 | K7: 3 | L7: 479 | M7: 499 | N7: -20 | O7: 563 | P7: 557 | Q7: 6 | R7: 712 | S7: 719 | T7: -7 | U7: 1014 | V7: 1023 | W7: -9 | X7: 1052 | Y7: 1060 | Z7: -8 | AA7: 1003 | AB7: 1003 | AC7: 0 | AD7: 1527 | AE7: 1526 | AF7: 1
A8: 회 덕 동 | B8: 12259 | C8: 12312 | D8: -53 | E8: -0.432335427 | F8: 6235 | G8: 6024 | H8: 5986 | I8: 1326 | J8: 1334 | K8: -8 | L8: 1126 | M8: 1140 | N8: -14 | O8: 1435 | P8: 1434 | Q8: 1 | R8: 1422 | S8: 1429 | T8: -7 | U8: 2299 | V8: 2316 | W8: -17 | X8: 2518 | Y8: 2522 | Z8: -4 | AA8: 2133 | AB8: 2137 | AC8: -4 | AD8: 3367 | AE8: 3363 | AF8: 4
A9: 비 래 동 | B9: 14525 | C9: 14567 | D9: -42 | E9: -0.2891566265 | F9: 7173 | G9: 7352 | H9: 6844 | I9: 1684 | J9: 1701 | K9: -17 | L9: 1659 | M9: 1688 | N9: -29 | O9: 1312 | P9: 1307 | Q9: 5 | R9: 1749 | S9: 1761 | T9: -12 | U9: 3044 | V9: 3047 | W9: -3 | X9: 2794 | Y9: 2798 | Z9: -4 | AA9: 2283 | AB9: 2265 | AC9: 18 | AD9: 3634 | AE9: 3617 | AF9: 17
A10: 송 촌 동 | B10: 26780 | C10: 26664 | D10: 116 | E10: 0.4331590739 | F10: 13291 | G10: 13489 | H10: 10937 | I10: 4707 | J10: 4691 | K10: 16 | L10: 3292 | M10: 3290 | N10: 2 | O10: 2894 | P10: 2842 | Q10: 52 | R10: 3914 | S10: 3910 | T10: 4 | U10: 5816 | V10: 5801 | W10: 15 | X10: 3896 | Y10: 3883 | Z10: 13 | AA10: 2261 | AB10: 2247 | AC10: 14 | AD10: 3863 | AE10: 3831 | AF10: 32
A11: 중 리 동 | B11: 17617 | C11: 17622 | D11: -5 | E11: -0.02838167679 | F11: 9257 | G11: 8360 | H11: 10147 | I11: 1649 | J11: 1665 | K11: -16 | L11: 2284 | M11: 2293 | N11: -9 | O11: 2003 | P11: 2003 | Q11: 0 | R11: 2179 | S11: 2186 | T11: -7 | U11: 3467 | V11: 3459 | W11: 8 | X11: 3415 | Y11: 3415 | Z11: 0 | AA11: 2620 | AB11: 2601 | AC11: 19 | AD11: 4261 | AE11: 4233 | AF11: 28
A12: 법 1 동 | B12: 12068 | C12: 12071 | D12: -3 | E12: -0.02485913159 | F12: 5625 | G12: 6443 | H12: 5856 | I12: 1484 | J12: 1490 | K12: -6 | L12: 1189 | M12: 1195 | N12: -6 | O12: 1433 | P12: 1430 | Q12: 3 | R12: 1414 | S12: 1431 | T12: -17 | U12: 2256 | V12: 2266 | W12: -10 | X12: 2279 | Y12: 2253 | Z12: 26 | AA12: 2013 | AB12: 2006 | AC12: 7 | AD12: 3106 | AE12: 3079 | AF12: 27
A13: 법 2 동 | B13: 14557 | C13: 14569 | D13: -12 | E13: -0.08243456756 | F13: 7038 | G13: 7519 | H13: 6757 | I13: 1717 | J13: 1721 | K13: -4 | L13: 1531 | M13: 1551 | N13: -20 | O13: 1313 | P13: 1295 | Q13: 18 | R13: 1651 | S13: 1655 | T13: -4 | U13: 2893 | V13: 2902 | W13: -9 | X13: 3123 | Y13: 3125 | Z13: -2 | AA13: 2329 | AB13: 2320 | AC13: 9 | AD13: 3841 | AE13: 3816 | AF13: 25
A14: 신 탄 진 | B14: 16064 | C14: 16048 | D14: 16 | E14: 0.09960159363 | F14: 8266 | G14: 7798 | H14: 7883 | I14: 1984 | J14: 1992 | K14: -8 | L14: 1801 | M14: 1788 | N14: 13 | O14: 2452 | P14: 2461 | Q14: -9 | R14: 2007 | S14: 2017 | T14: -10 | U14: 2949 | V14: 2938 | W14: 11 | X14: 2693 | Y14: 2683 | Z14: 10 | AA14: 2178 | AB14: 2169 | AC14: 9 | AD14: 3394 | AE14: 3360 | AF14: 34
A15: 석 봉 동 | B15: 15815 | C15: 15843 | D15: -28 | E15: -0.1770471072 | F15: 8075 | G15: 7740 | H15: 6667 | I15: 3132 | J15: 3132 | K15: 0 | L15: 1541 | M15: 1557 | N15: -16 | O15: 2420 | P15: 2431 | Q15: -11 | R15: 2751 | S15: 2752 | T15: -1 | U15: 2557 | V15: 2564 | W15: -7 | X15: 2092 | Y15: 2097 | Z15: -5 | AA15: 1322 | AB15: 1310 | AC15: 12 | AD15: 2251 | AE15: 2235 | AF15: 16
A16: 덕 암 동 | B16: 12402 | C16: 12431 | D16: -29 | E16: -0.2338332527 | F16: 6646 | G16: 5756 | H16: 6581 | I16: 1261 | J16: 1272 | K16: -11 | L16: 1609 | M16: 1647 | N16: -38 | O16: 1572 | P16: 1567 | Q16: 5 | R16: 1496 | S16: 1506 | T16: -10 | U16: 2486 | V16: 2485 | W16: 1 | X16: 2116 | Y16: 2107 | Z16: 9 | AA16: 1862 | AB16: 1847 | AC16: 15 | AD16: 2836 | AE16: 2815 | AF16: 21
A17: 목 상 동 | B17: 5885 | C17: 5905 | D17: -20 | E17: -0.3398470688 | F17: 3246 | G17: 2639 | H17: 3155 | I17: 700 | J17: 710 | K17: -10 | L17: 798 | M17: 812 | N17: -14 | O17: 883 | P17: 879 | Q17: 4 | R17: 937 | S17: 940 | T17: -3 | U17: 1110 | V17: 1104 | W17: 6 | X17: 891 | Y17: 893 | Z17: -2 | AA17: 566 | AB17: 567 | AC17: -1 | AD17: 951 | AE17: 948 | AF17: 3

Sheet 기관별연령별인구통계(2025.7.)
B2: 연령별(만)인구현황(기관별)
B4: 행정기관 : 대전광역시 대덕구 | M4: 출력일자 : | N4: 2025.09.01
B5: 통계년월 : 2025년 08월 현재
B6: 연령 | D6: 대덕구 | G6: 오정동 | J6: 대화동 | M6: 회덕동 | P6: 비래동 | S6: 송촌동 | V6: 중리동 | Y6: 신탄진동 | AB6: 석봉동 | AE6: 덕암동 | AH6: 목상동 | AK6: 법1동 | AN6: 법2동
D7: 인구수 | E7: 구성비 | F7: 성비 | G7: 인구수 | H7: 구성비 | I7: 성비 | J7: 인구수 | K7: 구성비 | L7: 성비 | M7: 인구수 | N7: 구성비 | O7: 성비 | P7: 인구수 | Q7: 구성비 | R7: 성비 | S7: 인구수 | T7: 구성비 | U7: 성비 | V7: 인구수 | W7: 구성비 | X7: 성비 | Y7: 인구수 | Z7: 구성비 | AA7: 성비 | AB7: 인구수 | AC7: 구성비 | AD7: 성비 | AE7: 인구수 | AF7: 구성비 | AG7: 성비 | AH7: 인구수 | AI7: 구성비 | AJ7: 성비 | AK7: 인구수 | AL7: 구성비 | AM7: 성비 | AN7: 인구수 | AO7: 구성비 | AP7: 성비
B8: 합 계 | C8: 계 | D8: 166,550 | E8: 100.00 | F8: 103.14 | G8: 13,285 | H8: 100.00 | I8: 109.64 | J8: 5,293 | K8: 100.00 | L8: 109.13 | M8: 12,259 | N8: 100.00 | O8: 103.50 | P8: 14,525 | Q8: 100.00 | R8: 97.57 | S8: 26,780 | T8: 100.00 | U8: 98.53 | V8: 17,617 | W8: 100.00 | X8: 110.73 | Y8: 16,064 | Z8: 100.00 | AA8: 106.00 | AB8: 15,815 | AC8: 100.00 | AD8: 104.33 | AE8: 12,402 | AF8: 100.00 | AG8: 115.46 | AH8: 5,885 | AI8: 100.00 | AJ8: 123.00 | AK8: 12,068 | AL8: 100.00 | AM8: 87.30 | AN8: 14,557 | AO8: 100.00 | AP8: 93.60
C9: 남 | D9: 84,562 | E9: 100.00 | G9: 6,948 | H9: 100.00 | J9: 2,762 | K9: 100.00 | M9: 6,235 | N9: 100.00 | P9: 7,173 | Q9: 100.00 | S9: 13,291 | T9: 100.00 | V9: 9,257 | W9: 100.00 | Y9: 8,266 | Z9: 100.00 | AB9: 8,075 | AC9: 100.00 | AE9: 6,646 | AF9: 100.00 | AH9: 3,246 | AI9: 100.00 | AK9: 5,625 | AL9: 100.00 | AN9: 7,038 | AO9: 100.00
C10: 여 | D10: 81,988 | E10: 100.00 | G10: 6,337 | H10: 100.00 | J10: 2,531 | K10: 100.00 | M10: 6,024 | N10: 100.00 | P10: 7,352 | Q10: 100.00 | S10: 13,489 | T10: 100.00 | V10: 8,360 | W10: 100.00 | Y10: 7,798 | Z10: 100.00 | AB10: 7,740 | AC10: 100.00 | AE10: 5,756 | AF10: 100.00 | AH10: 2,639 | AI10: 100.00 | AK10: 6,443 | AL10: 100.00 | AN10: 7,519 | AO10: 100.00
B11: 0세 | C11: 계 | D11: 745 | E11: 0.45 | F11: 101.90 | G11: 41 | H11: 0.31 | I11: 141.18 | J11: 7 | K11: 0.13 | L11: 75.00 | M11: 52 | N11: 0.42 | O11: 48.57 | P11: 27 | Q11: 0.19 | R11: 170.00 | S11: 126 | T11: 0.47 | U11: 88.06 | V11: 53 | W11: 0.30 | X11: 76.67 | Y11: 133 | Z11: 0.83 | AA11: 118.03 | AB11: 117 | AC11: 0.74 | AD11: 116.67 | AE11: 53 | AF11: 0.43 | AG11: 130.43 | AH11: 24 | AI11: 0.41 | AJ11: 71.43 | AK11: 68 | AL11: 0.56 | AM11: 112.50 | AN11: 44 | AO11: 0.30 | AP11: 100.00
C12: 남 | D12: 376 | E12: 0.44 | G12: 24 | H12: 0.35 | J12: 3 | K12: 0.11 | M12: 17 | N12: 0.27 | P12: 17 | Q12: 0.24 | S12: 59 | T12: 0.44 | V12: 23 | W12: 0.25 | Y12: 72 | Z12: 0.87 | AB12: 63 | AC12: 0.78 | AE12: 30 | AF12: 0.45 | AH12: 10 | AI12: 0.31 | AK12: 36 | AL12: 0.64 | AN12: 22 | AO12: 0.31
C13: 여 | D13: 369 | E13: 0.45 | G13: 17 | H13: 0.27 | J13: 4 | K13: 0.16 | M13: 35 | N13: 0.58 | P13: 10 | Q13: 0.14 | S13: 67 | T13: 0.50 | V13: 30 | W13: 0.36 | Y13: 61 | Z13: 0.78 | AB13: 54 | AC13: 0.70 | AE13: 23 | AF13: 0.40 | AH13: 14 | AI13: 0.53 | AK13: 32 | AL13: 0.50 | AN13: 22 | AO13: 0.29
B14: 1세 | C14: 계 | D14: 679 | E14: 0.41 | F14: 102.08 | G14: 33 | H14: 0.25 | I14: 135.71 | J14: 11 | K14: 0.21 | L14: 175.00 | M14: 53 | N14: 0.43 | O14: 112.00 | P14: 35 | Q14: 0.24 | R14: 105.88 | S14: 140 | T14: 0.52 | U14: 72.84 | V14: 33 | W14: 0.19 | X14: 120.00 | Y14: 117 | Z14: 0.73 | AA14: 125.00 | AB14: 91 | AC14: 0.58 | AD14: 106.82 | AE14: 38 | AF14: 0.31 | AG14: 80.95 | AH14: 18 | AI14: 0.31 | AJ14: 125.00 | AK14: 66 | AL14: 0.55 | AM14: 94.12 | AN14: 44 | AO14: 0.30 | AP14: 109.52
C15: 남 | D15: 343 | E15: 0.41 | G15: 19 | H15: 0.27 | J15: 7 | K15: 0.25 | M15: 28 | N15: 0.45 | P15: 18 | Q15: 0.25 | S15: 59 | T15: 0.44 | V15: 18 | W15: 0.19 | Y15: 65 | Z15: 0.79 | AB15: 47 | AC15: 0.58 | AE15: 17 | AF15: 0.26 | AH15: 10 | AI15: 0.31 | AK15: 32 | AL15: 0.57 | AN15: 23 | AO15: 0.33
C16: 여 | D16: 336 | E16: 0.41 | G16: 14 | H16: 0.22 | J16: 4 | K16: 0.16 | M16: 25 | N16: 0.42 | P16: 17 | Q16: 0.23 | S16: 81 | T16: 0.60 | V16: 15 | W16: 0.18 | Y16: 52 | Z16: 0.67 | AB16: 44 | AC16: 0.57 | AE16: 21 | AF16: 0.36 | AH16: 8 | AI16: 0.30 | AK16: 34 | AL16: 0.53 | AN16: 21 | AO16: 0.28
B17: 2세 | C17: 계 | D17: 719 | E17: 0.43 | F17: 126.10 | G17: 28 | H17: 0.21 | I17: 86.67 | J17: 9 | K17: 0.17 | L17: 200.00 | M17: 62 | N17: 0.51 | O17: 169.57 | P17: 37 | Q17: 0.25 | R17: 131.25 | S17: 121 | T17: 0.45 | U17: 137.25 | V17: 25 | W17: 0.14 | X17: 257.14 | Y17: 113 | Z17: 0.70 | AA17: 85.25 | AB17: 136 | AC17: 0.86 | AD17: 130.51 | AE17: 45 | AF17: 0.36 | AG17: 136.84 | AH17: 21 | AI17: 0.36 | AJ17: 133.33 | AK17: 70 | AL17: 0.58 | AM17: 125.81 | AN17: 52 | AO17: 0.36 | AP17: 116.67
C18: 남 | D18: 401 | E18: 0.47 | G18: 13 | H18: 0.19 | J18: 6 | K18: 0.22 | M18: 39 | N18: 0.63 | P18: 21 | Q18: 0.29 | S18: 70 | T18: 0.53 | V18: 18 | W18: 0.19 | Y18: 52 | Z18: 0.63 | AB18: 77 | AC18: 0.95 | AE18: 26 | AF18: 0.39 | AH18: 12 | AI18: 0.37 | AK18: 39 | AL18: 0.69 | AN18: 28 | AO18: 0.40
C19: 여 | D19: 318 | E19: 0.39 | G19: 15 | H19: 0.24 | J19: 3 | K19: 0.12 | M19: 23 | N19: 0.38 | P19: 16 | Q19: 0.22 | S19: 51 | T19: 0.38 | V19: 7 | W19: 0.08 | Y19: 61 | Z19: 0.78 | AB19: 59 | AC19: 0.76 | AE19: 19 | AF19: 0.33 | AH19: 9 | AI19: 0.34 | AK19: 31 | AL19: 0.48 | AN19: 24 | AO19: 0.32
B20: 3세 | C20: 계 | D20: 680 | E20: 0.41 | F20: 93.73 | G20: 30 | H20: 0.23 | I20: 200.00 | J20: 13 | K20: 0.25 | L20: 85.71 | M20: 58 | N20: 0.47 | O20: 123.08 | P20: 34 | Q20: 0.23 | R20: 112.50 | S20: 126 | T20: 0.47 | U20: 100.00 | V20: 38 | W20: 0.22 | X20: 90.00 | Y20: 93 | Z20: 0.58 | AA20: 69.09 | AB20: 142 | AC20: 0.90 | AD20: 75.31 | AE20: 32 | AF20: 0.26 | AG20: 128.57 | AH20: 24 | AI20: 0.41 | AJ20: 60.00 | AK20: 59 | AL20: 0.49 | AM20: 84.38 | AN20: 31 | AO20: 0.21 | AP20: 158.33
C21: 남 | D21: 329 | E21: 0.39 | G21: 20 | H21: 0.29 | J21: 6 | K21: 0.22 | M21: 32 | N21: 0.51 | P21: 18 | Q21: 0.25 | S21: 63 | T21: 0.47 | V21: 18 | W21: 0.19 | Y21: 38 | Z21: 0.46 | AB21: 61 | AC21: 0.76 | AE21: 18 | AF21: 0.27 | AH21: 9 | AI21: 0.28 | AK21: 27 | AL21: 0.48 | AN21: 19 | AO21: 0.27
C22: 여 | D22: 351 | E22: 0.43 | G22: 10 | H22: 0.16 | J22: 7 | K22: 0.28 | M22: 26 | N22: 0.43 | P22: 16 | Q22: 0.22 | S22: 63 | T22: 0.47 | V22: 20 | W22: 0.24 | Y22: 55 | Z22: 0.71 | AB22: 81 | AC22: 1.05 | AE22: 14 | AF22: 0.24 | AH22: 15 | AI22: 0.57 | AK22: 32 | AL22: 0.50 | AN22: 12 | AO22: 0.16
B23: 4세 | C23: 계 | D23: 680 | E23: 0.41 | F23: 109.23 | G23: 37 | H23: 0.28 | I23: 85.00 | J23: 14 | K23: 0.26 | L23: 100.00 | M23: 42 | N23: 0.34 | O23: 100.00 | P23: 35 | Q23: 0.24 | R23: 84.21 | S23: 152 | T23: 0.57 | U23: 97.40 | V23: 48 | W23: 0.27 | X23: 166.67 | Y23: 64 | Z23: 0.40 | AA23: 68.42 | AB23: 124 | AC23: 0.78 | AD23: 148.00 | AE23: 48 | AF23: 0.39 | AG23: 100.00 | AH23: 22 | AI23: 0.37 | AJ23: 144.44 | AK23: 57 | AL23: 0.47 | AM23: 128.00 | AN23: 37 | AO23: 0.25 | AP23: 117.65
C24: 남 | D24: 355 | E24: 0.42 | G24: 17 | H24: 0.24 | J24: 7 | K24: 0.25 | M24: 21 | N24: 0.34 | P24: 16 | Q24: 0.22 | S24: 75 | T24: 0.56 | V24: 30 | W24: 0.32 | Y24: 26 | Z24: 0.31 | AB24: 74 | AC24: 0.92 | AE24: 24 | AF24: 0.36 | AH24: 13 | AI24: 0.40 | AK24: 32 | AL24: 0.57 | AN24: 20 | AO24: 0.28
C25: 여 | D25: 325 | E25: 0.40 | G25: 20 | H25: 0.32 | J25: 7 | K25: 0.28 | M25: 21 | N25: 0.35 | P25: 19 | Q25: 0.26 | S25: 77 | T25: 0.57 | V25: 18 | W25: 0.22 | Y25: 38 | Z25: 0.49 | AB25: 50 | AC25: 0.65 | AE25: 24 | AF25: 0.42 | AH25: 9 | AI25: 0.34 | AK25: 25 | AL25: 0.39 | AN25: 17 | AO25: 0.23
B26: 5세 | C26: 계 | D26: 696 | E26: 0.42 | F26: 109.01 | G26: 27 | H26: 0.20 | I26: 237.50 | J26: 11 | K26: 0.21 | L26: 57.14 | M26: 58 | N26: 0.47 | O26: 123.08 | P26: 39 | Q26: 0.27 | R26: 116.67 | S26: 124 | T26: 0.46 | U26: 110.17 | V26: 44 | W26: 0.25 | X26: 91.30 | Y26: 86 | Z26: 0.54 | AA26: 104.76 | AB26: 134 | AC26: 0.85 | AD26: 123.33 | AE26: 52 | AF26: 0.42 | AG26: 92.59 | AH26: 24 | AI26: 0.41 | AJ26: 84.62 | AK26: 47 | AL26: 0.39 | AM26: 56.67 | AN26: 50 | AO26: 0.34 | AP26: 150.00
C27: 남 | D27: 363 | E27: 0.43 | G27: 19 | H27: 0.27 | J27: 4 | K27: 0.14 | M27: 32 | N27: 0.51 | P27: 21 | Q27: 0.29 | S27: 65 | T27: 0.49 | V27: 21 | W27: 0.23 | Y27: 44 | Z27: 0.53 | AB27: 74 | AC27: 0.92 | AE27: 25 | AF27: 0.38 | AH27: 11 | AI27: 0.34 | AK27: 17 | AL27: 0.30 | AN27: 30 | AO27: 0.43
C28: 여 | D28: 333 | E28: 0.41 | G28: 8 | H28: 0.13 | J28: 7 | K28: 0.28 | M28: 26 | N28: 0.43 | P28: 18 | Q28: 0.24 | S28: 59 | T28: 0.44 | V28: 23 | W28: 0.28 | Y28: 42 | Z28: 0.54 | AB28: 60 | AC28: 0.78 | AE28: 27 | AF28: 0.47 | AH28: 13 | AI28: 0.49 | AK28: 30 | AL28: 0.47 | AN28: 20 | AO28: 0.27
B29: 6세 | C29: 계 | D29: 834 | E29: 0.50 | F29: 90.85 | G29: 44 | H29: 0.33 | I29: 120.00 | J29: 13 | K29: 0.25 | L29: 62.50 | M29: 57 | N29: 0.46 | O29: 78.13 | P29: 52 | Q29: 0.36 | R29: 136.36 | S29: 169 | T29: 0.63 | U29: 81.72 | V29: 60 | W29: 0.34 | X29: 100.00 | Y29: 74 | Z29: 0.46 | AA29: 72.09 | AB29: 145 | AC29: 0.92 | AD29: 116.42 | AE29: 43 | AF29: 0.35 | AG29: 95.45 | AH29: 26 | AI29: 0.44 | AJ29: 62.50 | AK29: 64 | AL29: 0.53 | AM29: 82.86 | AN29: 87 | AO29: 0.60 | AP29: 77.55
C30: 남 | D30: 397 | E30: 0.47 | G30: 24 | H30: 0.35 | J30: 5 | K30: 0.18 | M30: 25 | N30: 0.40 | P30: 30 | Q30: 0.42 | S30: 76 | T30: 0.57 | V30: 30 | W30: 0.32 | Y30: 31 | Z30: 0.38 | AB30: 78 | AC30: 0.97 | AE30: 21 | AF30: 0.32 | AH30: 10 | AI30: 0.31 | AK30: 29 | AL30: 0.52 | AN30: 38 | AO30: 0.54
C31: 여 | D31: 437 | E31: 0.53 | G31: 20 | H31: 0.32 | J31: 8 | K31: 0.32 | M31: 32 | N31: 0.53 | P31: 22 | Q31: 0.30 | S31: 93 | T31: 0.69 | V31: 30 | W31: 0.36 | Y31: 43 | Z31: 0.55 | AB31: 67 | AC31: 0.87 | AE31: 22 | AF31: 0.38 | AH31: 16 | AI31: 0.61 | AK31: 35 | AL31: 0.54 | AN31: 49 | AO31: 0.65
B32: 7세 | C32: 계 | D32: 800 | E32: 0.48 | F32: 90.48 | G32: 29 | H32: 0.22 | I32: 70.59 | J32: 15 | K32: 0.28 | L32: 87.50 | M32: 49 | N32: 0.40 | O32: 81.48 | P32: 56 | Q32: 0.39 | R32: 115.38 | S32: 188 | T32: 0.70 | U32: 84.31 | V32: 50 | W32: 0.28 | X32: 108.33 | Y32: 85 | Z32: 0.53 | AA32: 84.78 | AB32: 156 | AC32: 0.99 | AD32: 95.00 | AE32: 32 | AF32: 0.26 | AG32: 100.00 | AH32: 17 | AI32: 0.29 | AJ32: 142.86 | AK32: 51 | AL32: 0.42 | AM32: 96.15 | AN32: 72 | AO32: 0.49 | AP32: 75.61
C33: 남 | D33: 380 | E33: 0.45 | G33: 12 | H33: 0.17 | J33: 7 | K33: 0.25 | M33: 22 | N33: 0.35 | P33: 30 | Q33: 0.42 | S33: 86 | T33: 0.65 | V33: 26 | W33: 0.28 | Y33: 39 | Z33: 0.47 | AB33: 76 | AC33: 0.94 | AE33: 16 | AF33: 0.24 | AH33: 10 | AI33: 0.31 | AK33: 25 | AL33: 0.44 | AN33: 31 | AO33: 0.44
C34: 여 | D34: 420 | E34: 0.51 | G34: 17 | H34: 0.27 | J34: 8 | K34: 0.32 | M34: 27 | N34: 0.45 | P34: 26 | Q34: 0.35 | S34: 102 | T34: 0.76 | V34: 24 | W34: 0.29 | Y34: 46 | Z34: 0.59 | AB34: 80 | AC34: 1.03 | AE34: 16 | AF34: 0.28 | AH34: 7 | AI34: 0.27 | AK34: 26 | AL34: 0.40 | AN34: 41 | AO34: 0.55
B35: 8세 | C35: 계 | D35: 976 | E35: 0.59 | F35: 104.61 | G35: 45 | H35: 0.34 | I35: 80.00 | J35: 15 | K35: 0.28 | L35: 87.50 | M35: 54 | N35: 0.44 | O35: 107.69 | P35: 78 | Q35: 0.54 | R35: 85.71 | S35: 215 | T35: 0.80 | U35: 104.76 | V35: 75 | W35: 0.43 | X35: 92.31 | Y35: 78 | Z35: 0.49 | AA35: 122.86 | AB35: 179 | AC35: 1.13 | AD35: 123.75 | AE35: 58 | AF35: 0.47 | AG35: 132.00 | AH35: 26 | AI35: 0.44 | AJ35: 85.71 | AK35: 70 | AL35: 0.58 | AM35: 62.79 | AN35: 83 | AO35: 0.57 | AP35: 137.14
C36: 남 | D36: 499 | E36: 0.59 | G36: 20 | H36: 0.29 | J36: 7 | K36: 0.25 | M36: 28 | N36: 0.45 | P36: 36 | Q36: 0.50 | S36: 110 | T36: 0.83 | V36: 36 | W36: 0.39 | Y36: 43 | Z36: 0.52 | AB36: 99 | AC36: 1.23 | AE36: 33 | AF36: 0.50 | AH36: 12 | AI36: 0.37 | AK36: 27 | AL36: 0.48 | AN36: 48 | AO36: 0.68
C37: 여 | D37: 477 | E37: 0.58 | G37: 25 | H37: 0.39 | J37: 8 | K37: 0.32 | M37: 26 | N37: 0.43 | P37: 42 | Q37: 0.57 | S37: 105 | T37: 0.78 | V37: 39 | W37: 0.47 | Y37: 35 | Z37: 0.45 | AB37: 80 | AC37: 1.03 | AE37: 25 | AF37: 0.43 | AH37: 14 | AI37: 0.53 | AK37: 43 | AL37: 0.67 | AN37: 35 | AO37: 0.47
B38: 9세 | C38: 계 | D38: 1,032 | E38: 0.62 | F38: 95.83 | G38: 48 | H38: 0.36 | I38: 92.00 | J38: 21 | K38: 0.40 | L38: 200.00 | M38: 54 | N38: 0.44 | O38: 107.69 | P38: 76 | Q38: 0.52 | R38: 90.00 | S38: 222 | T38: 0.83 | U38: 101.82 | V38: 73 | W38: 0.41 | X38: 65.91 | Y38: 93 | Z38: 0.58 | AA38: 86.00 | AB38: 206 | AC38: 1.30 | AD38: 76.07 | AE38: 43 | AF38: 0.35 | AG38: 115.00 | AH38: 36 | AI38: 0.61 | AJ38: 140.00 | AK38: 68 | AL38: 0.56 | AM38: 134.48 | AN38: 92 | AO38: 0.63 | AP38: 109.09
C39: 남 | D39: 505 | E39: 0.60 | G39: 23 | H39: 0.33 | J39: 14 | K39: 0.51 | M39: 28 | N39: 0.45 | P39: 36 | Q39: 0.50 | S39: 112 | T39: 0.84 | V39: 29 | W39: 0.31 | Y39: 43 | Z39: 0.52 | AB39: 89 | AC39: 1.10 | AE39: 23 | AF39: 0.35 | AH39: 21 | AI39: 0.65 | AK39: 39 | AL39: 0.69 | AN39: 48 | AO39: 0.68
C40: 여 | D40: 527 | E40: 0.64 | G40: 25 | H40: 0.39 | J40: 7 | K40: 0.28 | M40: 26 | N40: 0.43 | P40: 40 | Q40: 0.54 | S40: 110 | T40: 0.82 | V40: 44 | W40: 0.53 | Y40: 50 | Z40: 0.64 | AB40: 117 | AC40: 1.51 | AE40: 20 | AF40: 0.35 | AH40: 15 | AI40: 0.57 | AK40: 29 | AL40: 0.45 | AN40: 44 | AO40: 0.59
B41: 10세 | C41: 계 | D41: 1,126 | E41: 0.68 | F41: 111.26 | G41: 63 | H41: 0.47 | I41: 103.23 | J41: 19 | K41: 0.36 | L41: 90.00 | M41: 53 | N41: 0.43 | O41: 96.30 | P41: 99 | Q41: 0.68 | R41: 115.22 | S41: 235 | T41: 0.88 | U41: 119.63 | V41: 83 | W41: 0.47 | X41: 112.82 | Y41: 102 | Z41: 0.63 | AA41: 85.45 | AB41: 210 | AC41: 1.33 | AD41: 141.38 | AE41: 58 | AF41: 0.47 | AG41: 107.14 | AH41: 34 | AI41: 0.58 | AJ41: 142.86 | AK41: 75 | AL41: 0.62 | AM41: 82.93 | AN41: 95 | AO41: 0.65 | AP41: 97.92
C42: 남 | D42: 593 | E42: 0.70 | G42: 32 | H42: 0.46 | J42: 9 | K42: 0.33 | M42: 26 | N42: 0.42 | P42: 53 | Q42: 0.74 | S42: 128 | T42: 0.96 | V42: 44 | W42: 0.48 | Y42: 47 | Z42: 0.57 | AB42: 123 | AC42: 1.52 | AE42: 30 | AF42: 0.45 | AH42: 20 | AI42: 0.62 | AK42: 34 | AL42: 0.60 | AN42: 47 | AO42: 0.67
C43: 여 | D43: 533 | E43: 0.65 | G43: 31 | H43: 0.49 | J43: 10 | K43: 0.40 | M43: 27 | N43: 0.45 | P43: 46 | Q43: 0.63 | S43: 107 | T43: 0.79 | V43: 39 | W43: 0.47 | Y43: 55 | Z43: 0.71 | AB43: 87 | AC43: 1.12 | AE43: 28 | AF43: 0.49 | AH43: 14 | AI43: 0.53 | AK43: 41 | AL43: 0.64 | AN43: 48 | AO43: 0.64
B44: 11세 | C44: 계 | D44: 1,174 | E44: 0.70 | F44: 117.41 | G44: 50 | H44: 0.38 | I44: 127.27 | J44: 25 | K44: 0.47 | L44: 212.50 | M44: 67 | N44: 0.55 | O44: 116.13 | P44: 88 | Q44: 0.61 | R44: 151.43 | S44: 267 | T44: 1.00 | U44: 97.78 | V44: 86 | W44: 0.49 | X44: 104.76 | Y44: 89 | Z44: 0.55 | AA44: 102.27 | AB44: 225 | AC44: 1.42 | AD44: 118.45 | AE44: 63 | AF44: 0.51 | AG44: 125.00 | AH44: 35 | AI44: 0.59 | AJ44: 169.23 | AK44: 76 | AL44: 0.63 | AM44: 111.11 | AN44: 103 | AO44: 0.71 | AP44: 139.53
C45: 남 | D45: 634 | E45: 0.75 | G45: 28 | H45: 0.40 | J45: 17 | K45: 0.62 | M45: 36 | N45: 0.58 | P45: 53 | Q45: 0.74 | S45: 132 | T45: 0.99 | V45: 44 | W45: 0.48 | Y45: 45 | Z45: 0.54 | AB45: 122 | AC45: 1.51 | AE45: 35 | AF45: 0.53 | AH45: 22 | AI45: 0.68 | AK45: 40 | AL45: 0.71 | AN45: 60 | AO45: 0.85
C46: 여 | D46: 540 | E46: 0.66 | G46: 22 | H46: 0.35 | J46: 8 | K46: 0.32 | M46: 31 | N46: 0.51 | P46: 35 | Q46: 0.48 | S46: 135 | T46: 1.00 | V46: 42 | W46: 0.50 | Y46: 44 | Z46: 0.56 | AB46: 103 | AC46: 1.33 | AE46: 28 | AF46: 0.49 | AH46: 13 | AI46: 0.49 | AK46: 36 | AL46: 0.56 | AN46: 43 | AO46: 0.57
B47: 12세 | C47: 계 | D47: 1,282 | E47: 0.77 | F47: 98.45 | G47: 73 | H47: 0.55 | I47: 65.91 | J47: 30 | K47: 0.57 | L47: 130.77 | M47: 78 | N47: 0.64 | O47: 90.24 | P47: 94 | Q47: 0.65 | R47: 100.00 | S47: 302 | T47: 1.13 | U47: 106.85 | V47: 98 | W47: 0.56 | X47: 127.91 | Y47: 105 | Z47: 0.65 | AA47: 101.92 | AB47: 210 | AC47: 1.33 | AD47: 101.92 | AE47: 69 | AF47: 0.56 | AG47: 81.58 | AH47: 48 | AI47: 0.82 | AJ47: 77.78 | AK47: 80 | AL47: 0.66 | AM47: 90.48 | AN47: 95 | AO47: 0.65 | AP47: 93.88
C48: 남 | D48: 636 | E48: 0.75 | G48: 29 | H48: 0.42 | J48: 17 | K48: 0.62 | M48: 37 | N48: 0.59 | P48: 47 | Q48: 0.66 | S48: 156 | T48: 1.17 | V48: 55 | W48: 0.59 | Y48: 53 | Z48: 0.64 | AB48: 106 | AC48: 1.31 | AE48: 31 | AF48: 0.47 | AH48: 21 | AI48: 0.65 | AK48: 38 | AL48: 0.68 | AN48: 46 | AO48: 0.65
C49: 여 | D49: 646 | E49: 0.79 | G49: 44 | H49: 0.69 | J49: 13 | K49: 0.51 | M49: 41 | N49: 0.68 | P49: 47 | Q49: 0.64 | S49: 146 | T49: 1.08 | V49: 43 | W49: 0.51 | Y49: 52 | Z49: 0.67 | AB49: 104 | AC49: 1.34 | AE49: 38 | AF49: 0.66 | AH49: 27 | AI49: 1.02 | AK49: 42 | AL49: 0.65 | AN49: 49 | AO49: 0.65
B50: 13세 | C50: 계 | D50: 1,303 | E50: 0.78 | F50: 110.84 | G50: 73 | H50: 0.55 | I50: 170.37 | J50: 36 | K50: 0.68 | L50: 100.00 | M50: 76 | N50: 0.62 | O50: 111.11 | P50: 106 | Q50: 0.73 | R50: 100.00 | S50: 300 | T50: 1.12 | U50: 98.68 | V50: 117 | W50: 0.66 | X50: 108.93 | Y50: 109 | Z50: 0.68 | AA50: 87.93 | AB50: 181 | AC50: 1.14 | AD50: 123.46 | AE50: 82 | AF50: 0.66 | AG50: 164.52 | AH50: 36 | AI50: 0.61 | AJ50: 89.47 | AK50: 75 | AL50: 0.62 | AM50: 114.29 | AN50: 112 | AO50: 0.77 | AP50: 111.32
C51: 남 | D51: 685 | E51: 0.81 | G51: 46 | H51: 0.66 | J51: 18 | K51: 0.65 | M51: 40 | N51: 0.64 | P51: 53 | Q51: 0.74 | S51: 149 | T51: 1.12 | V51: 61 | W51: 0.66 | Y51: 51 | Z51: 0.62 | AB51: 100 | AC51: 1.24 | AE51: 51 | AF51: 0.77 | AH51: 17 | AI51: 0.52 | AK51: 40 | AL51: 0.71 | AN51: 59 | AO51: 0.84
C52: 여 | D52: 618 | E52: 0.75 | G52: 27 | H52: 0.43 | J52: 18 | K52: 0.71 | M52: 36 | N52: 0.60 | P52: 53 | Q52: 0.72 | S52: 151 | T52: 1.12 | V52: 56 | W52: 0.67 | Y52: 58 | Z52: 0.74 | AB52: 81 | AC52: 1.05 | AE52: 31 | AF52: 0.54 | AH52: 19 | AI52: 0.72 | AK52: 35 | AL52: 0.54 | AN52: 53 | AO52: 0.70
B53: 14세 | C53: 계 | D53: 1,415 | E53: 0.85 | F53: 103.01 | G53: 92 | H53: 0.69 | I53: 148.65 | J53: 38 | K53: 0.72 | L53: 123.53 | M53: 82 | N53: 0.67 | O53: 127.78 | P53: 118 | Q53: 0.81 | R53: 84.38 | S53: 343 | T53: 1.28 | U53: 92.70 | V53: 107 | W53: 0.61 | X53: 109.80 | Y53: 109 | Z53: 0.68 | AA53: 109.62 | AB53: 196 | AC53: 1.24 | AD53: 100.00 | AE53: 90 | AF53: 0.73 | AG53: 104.55 | AH53: 53 | AI53: 0.90 | AJ53: 70.97 | AK53: 75 | AL53: 0.62 | AM53: 97.37 | AN53: 112 | AO53: 0.77 | AP53: 119.61
C54: 남 | D54: 718 | E54: 0.85 | G54: 55 | H54: 0.79 | J54: 21 | K54: 0.76 | M54: 46 | N54: 0.74 | P54: 54 | Q54: 0.75 | S54: 165 | T54: 1.24 | V54: 56 | W54: 0.60 | Y54: 57 | Z54: 0.69 | AB54: 98 | AC54: 1.21 | AE54: 46 | AF54: 0.69 | AH54: 22 | AI54: 0.68 | AK54: 37 | AL54: 0.66 | AN54: 61 | AO54: 0.87
C55: 여 | D55: 697 | E55: 0.85 | G55: 37 | H55: 0.58 | J55: 17 | K55: 0.67 | M55: 36 | N55: 0.60 | P55: 64 | Q55: 0.87 | S55: 178 | T55: 1.32 | V55: 51 | W55: 0.61 | Y55: 52 | Z55: 0.67 | AB55: 98 | AC55: 1.27 | AE55: 44 | AF55: 0.76 | AH55: 31 | AI55: 1.17 | AK55: 38 | AL55: 0.59 | AN55: 51 | AO55: 0.68
B56: 15세 | C56: 계 | D56: 1,359 | E56: 0.82 | F56: 114.02 | G56: 82 | H56: 0.62 | I56: 110.26 | J56: 38 | K56: 0.72 | L56: 90.00 | M56: 77 | N56: 0.63 | O56: 113.89 | P56: 128 | Q56: 0.88 | R56: 120.69 | S56: 321 | T56: 1.20 | U56: 121.38 | V56: 124 | W56: 0.70 | X56: 121.43 | Y56: 107 | Z56: 0.67 | AA56: 87.72 | AB56: 149 | AC56: 0.94 | AD56: 125.76 | AE56: 88 | AF56: 0.71 | AG56: 100.00 | AH56: 42 | AI56: 0.71 | AJ56: 121.05 | AK56: 88 | AL56: 0.73 | AM56: 109.52 | AN56: 115 | AO56: 0.79 | AP56: 116.98
C57: 남 | D57: 724 | E57: 0.86 | G57: 43 | H57: 0.62 | J57: 18 | K57: 0.65 | M57: 41 | N57: 0.66 | P57: 70 | Q57: 0.98 | S57: 176 | T57: 1.32 | V57: 68 | W57: 0.73 | Y57: 50 | Z57: 0.60 | AB57: 83 | AC57: 1.03 | AE57: 44 | AF57: 0.66 | AH57: 23 | AI57: 0.71 | AK57: 46 | AL57: 0.82 | AN57: 62 | AO57: 0.88
C58: 여 | D58: 635 | E58: 0.77 | G58: 39 | H58: 0.62 | J58: 20 | K58: 0.79 | M58: 36 | N58: 0.60 | P58: 58 | Q58: 0.79 | S58: 145 | T58: 1.07 | V58: 56 | W58: 0.67 | Y58: 57 | Z58: 0.73 | AB58: 66 | AC58: 0.85 | AE58: 44 | AF58: 0.76 | AH58: 19 | AI58: 0.72 | AK58: 42 | AL58: 0.65 | AN58: 53 | AO58: 0.70
B59: 16세 | C59: 계 | D59: 1,359 | E59: 0.82 | F59: 106.85 | G59: 89 | H59: 0.67 | I59: 111.90 | J59: 35 | K59: 0.66 | L59: 191.67 | M59: 92 | N59: 0.75 | O59: 124.39 | P59: 137 | Q59: 0.94 | R59: 128.33 | S59: 303 | T59: 1.13 | U59: 87.04 | V59: 115 | W59: 0.65 | X59: 125.49 | Y59: 103 | Z59: 0.64 | AA59: 87.27 | AB59: 145 | AC59: 0.92 | AD59: 119.70 | AE59: 79 | AF59: 0.64 | AG59: 92.68 | AH59: 55 | AI59: 0.93 | AJ59: 66.67 | AK59: 98 | AL59: 0.81 | AM59: 96.00 | AN59: 108 | AO59: 0.74 | AP59: 145.45
C60: 남 | D60: 702 | E60: 0.83 | G60: 47 | H60: 0.68 | J60: 23 | K60: 0.83 | M60: 51 | N60: 0.82 | P60: 77 | Q60: 1.07 | S60: 141 | T60: 1.06 | V60: 64 | W60: 0.69 | Y60: 48 | Z60: 0.58 | AB60: 79 | AC60: 0.98 | AE60: 38 | AF60: 0.57 | AH60: 22 | AI60: 0.68 | AK60: 48 | AL60: 0.85 | AN60: 64 | AO60: 0.91
C61: 여 | D61: 657 | E61: 0.80 | G61: 42 | H61: 0.66 | J61: 12 | K61: 0.47 | M61: 41 | N61: 0.68 | P61: 60 | Q61: 0.82 | S61: 162 | T61: 1.20 | V61: 51 | W61: 0.61 | Y61: 55 | Z61: 0.71 | AB61: 66 | AC61: 0.85 | AE61: 41 | AF61: 0.71 | AH61: 33 | AI61: 1.25 | AK61: 50 | AL61: 0.78 | AN61: 44 | AO61: 0.59
B62: 17세 | C62: 계 | D62: 1,491 | E62: 0.90 | F62: 103.41 | G62: 94 | H62: 0.71 | I62: 84.31 | J62: 52 | K62: 0.98 | L62: 126.09 | M62: 74 | N62: 0.60 | O62: 117.65 | P62: 156 | Q62: 1.07 | R62: 102.60 | S62: 343 | T62: 1.28 | U62: 92.70 | V62: 121 | W62: 0.69 | X62: 116.07 | Y62: 107 | Z62: 0.67 | AA62: 98.15 | AB62: 140 | AC62: 0.89 | AD62: 102.90 | AE62: 98 | AF62: 0.79 | AG62: 127.91 | AH62: 72 | AI62: 1.22 | AJ62: 118.18 | AK62: 111 | AL62: 0.92 | AM62: 113.46 | AN62: 123 | AO62: 0.84 | AP62: 95.24
C63: 남 | D63: 758 | E63: 0.90 | G63: 43 | H63: 0.62 | J63: 29 | K63: 1.05 | M63: 40 | N63: 0.64 | P63: 79 | Q63: 1.10 | S63: 165 | T63: 1.24 | V63: 65 | W63: 0.70 | Y63: 53 | Z63: 0.64 | AB63: 71 | AC63: 0.88 | AE63: 55 | AF63: 0.83 | AH63: 39 | AI63: 1.20 | AK63: 59 | AL63: 1.05 | AN63: 60 | AO63: 0.85
C64: 여 | D64: 733 | E64: 0.89 | G64: 51 | H64: 0.80 | J64: 23 | K64: 0.91 | M64: 34 | N64: 0.56 | P64: 77 | Q64: 1.05 | S64: 178 | T64: 1.32 | V64: 56 | W64: 0.67 | Y64: 54 | Z64: 0.69 | AB64: 69 | AC64: 0.89 | AE64: 43 | AF64: 0.75 | AH64: 33 | AI64: 1.25 | AK64: 52 | AL64: 0.81 | AN64: 63 | AO64: 0.84
B65: 18세 | C65: 계 | D65: 1,542 | E65: 0.93 | F65: 117.18 | G65: 124 | H65: 0.93 | I65: 163.83 | J65: 43 | K65: 0.81 | L65: 104.76 | M65: 84 | N65: 0.69 | O65: 115.38 | P65: 149 | Q65: 1.03 | R65: 140.32 | S65: 384 | T65: 1.43 | U65: 108.70 | V65: 136 | W65: 0.77 | X65: 102.99 | Y65: 126 | Z65: 0.78 | AA65: 186.36 | AB65: 128 | AC65: 0.81 | AD65: 106.45 | AE65: 93 | AF65: 0.75 | AG65: 102.17 | AH65: 44 | AI65: 0.75 | AJ65: 144.44 | AK65: 86 | AL65: 0.71 | AM65: 104.76 | AN65: 145 | AO65: 1.00 | AP65: 85.90
C66: 남 | D66: 832 | E66: 0.98 | G66: 77 | H66: 1.11 | J66: 22 | K66: 0.80 | M66: 45 | N66: 0.72 | P66: 87 | Q66: 1.21 | S66: 200 | T66: 1.50 | V66: 69 | W66: 0.75 | Y66: 82 | Z66: 0.99 | AB66: 66 | AC66: 0.82 | AE66: 47 | AF66: 0.71 | AH66: 26 | AI66: 0.80 | AK66: 44 | AL66: 0.78 | AN66: 67 | AO66: 0.95
C67: 여 | D67: 710 | E67: 0.87 | G67: 47 | H67: 0.74 | J67: 21 | K67: 0.83 | M67: 39 | N67: 0.65 | P67: 62 | Q67: 0.84 | S67: 184 | T67: 1.36 | V67: 67 | W67: 0.80 | Y67: 44 | Z67: 0.56 | AB67: 62 | AC67: 0.80 | AE67: 46 | AF67: 0.80 | AH67: 18 | AI67: 0.68 | AK67: 42 | AL67: 0.65 | AN67: 78 | AO67: 1.04
B68: 19세 | C68: 계 | D68: 1,468 | E68: 0.88 | F68: 116.52 | G68: 144 | H68: 1.08 | I68: 92.00 | J68: 25 | K68: 0.47 | L68: 150.00 | M68: 104 | N68: 0.85 | O68: 160.00 | P68: 140 | Q68: 0.96 | R68: 105.88 | S68: 326 | T68: 1.22 | U68: 106.33 | V68: 163 | W68: 0.93 | X68: 101.23 | Y68: 91 | Z68: 0.57 | AA68: 295.65 | AB68: 118 | AC68: 0.75 | AD68: 126.92 | AE68: 97 | AF68: 0.78 | AG68: 94.00 | AH68: 43 | AI68: 0.73 | AJ68: 95.45 | AK68: 100 | AL68: 0.83 | AM68: 122.22 | AN68: 117 | AO68: 0.80 | AP68: 116.67
C69: 남 | D69: 790 | E69: 0.93 | G69: 69 | H69: 0.99 | J69: 15 | K69: 0.54 | M69: 64 | N69: 1.03 | P69: 72 | Q69: 1.00 | S69: 168 | T69: 1.26 | V69: 82 | W69: 0.89 | Y69: 68 | Z69: 0.82 | AB69: 66 | AC69: 0.82 | AE69: 47 | AF69: 0.71 | AH69: 21 | AI69: 0.65 | AK69: 55 | AL69: 0.98 | AN69: 63 | AO69: 0.90
C70: 여 | D70: 678 | E70: 0.83 | G70: 75 | H70: 1.18 | J70: 10 | K70: 0.40 | M70: 40 | N70: 0.66 | P70: 68 | Q70: 0.92 | S70: 158 | T70: 1.17 | V70: 81 | W70: 0.97 | Y70: 23 | Z70: 0.29 | AB70: 52 | AC70: 0.67 | AE70: 50 | AF70: 0.87 | AH70: 22 | AI70: 0.83 | AK70: 45 | AL70: 0.70 | AN70: 54 | AO70: 0.72
B71: 20세 | C71: 계 | D71: 1,505 | E71: 0.90 | F71: 107.02 | G71: 177 | H71: 1.33 | I71: 52.59 | J71: 36 | K71: 0.68 | L71: 157.14 | M71: 92 | N71: 0.75 | O71: 109.09 | P71: 134 | Q71: 0.92 | R71: 103.03 | S71: 305 | T71: 1.14 | U71: 122.63 | V71: 147 | W71: 0.83 | X71: 122.73 | Y71: 126 | Z71: 0.78 | AA71: 137.74 | AB71: 121 | AC71: 0.77 | AD71: 120.00 | AE71: 97 | AF71: 0.78 | AG71: 136.59 | AH71: 42 | AI71: 0.71 | AJ71: 133.33 | AK71: 96 | AL71: 0.80 | AM71: 77.78 | AN71: 132 | AO71: 0.91 | AP71: 109.52
C72: 남 | D72: 778 | E72: 0.92 | G72: 61 | H72: 0.88 | J72: 22 | K72: 0.80 | M72: 48 | N72: 0.77 | P72: 68 | Q72: 0.95 | S72: 168 | T72: 1.26 | V72: 81 | W72: 0.88 | Y72: 73 | Z72: 0.88 | AB72: 66 | AC72: 0.82 | AE72: 56 | AF72: 0.84 | AH72: 24 | AI72: 0.74 | AK72: 42 | AL72: 0.75 | AN72: 69 | AO72: 0.98
C73: 여 | D73: 727 | E73: 0.89 | G73: 116 | H73: 1.83 | J73: 14 | K73: 0.55 | M73: 44 | N73: 0.73 | P73: 66 | Q73: 0.90 | S73: 137 | T73: 1.02 | V73: 66 | W73: 0.79 | Y73: 53 | Z73: 0.68 | AB73: 55 | AC73: 0.71 | AE73: 41 | AF73: 0.71 | AH73: 18 | AI73: 0.68 | AK73: 54 | AL73: 0.84 | AN73: 63 | AO73: 0.84
B74: 21세 | C74: 계 | D74: 1,717 | E74: 1.03 | F74: 121.26 | G74: 263 | H74: 1.98 | I74: 58.43 | J74: 34 | K74: 0.64 | L74: 209.09 | M74: 84 | N74: 0.69 | O74: 133.33 | P74: 163 | Q74: 1.12 | R74: 139.71 | S74: 354 | T74: 1.32 | U74: 149.30 | V74: 167 | W74: 0.95 | X74: 116.88 | Y74: 121 | Z74: 0.75 | AA74: 132.69 | AB74: 132 | AC74: 0.83 | AD74: 127.59 | AE74: 116 | AF74: 0.94 | AG74: 176.19 | AH74: 55 | AI74: 0.93 | AJ74: 83.33 | AK74: 87 | AL74: 0.72 | AM74: 112.20 | AN74: 141 | AO74: 0.97 | AP74: 166.04
C75: 남 | D75: 941 | E75: 1.11 | G75: 97 | H75: 1.40 | J75: 23 | K75: 0.83 | M75: 48 | N75: 0.77 | P75: 95 | Q75: 1.32 | S75: 212 | T75: 1.60 | V75: 90 | W75: 0.97 | Y75: 69 | Z75: 0.83 | AB75: 74 | AC75: 0.92 | AE75: 74 | AF75: 1.11 | AH75: 25 | AI75: 0.77 | AK75: 46 | AL75: 0.82 | AN75: 88 | AO75: 1.25
C76: 여 | D76: 776 | E76: 0.95 | G76: 166 | H76: 2.62 | J76: 11 | K76: 0.43 | M76: 36 | N76: 0.60 | P76: 68 | Q76: 0.92 | S76: 142 | T76: 1.05 | V76: 77 | W76: 0.92 | Y76: 52 | Z76: 0.67 | AB76: 58 | AC76: 0.75 | AE76: 42 | AF76: 0.73 | AH76: 30 | AI76: 1.14 | AK76: 41 | AL76: 0.64 | AN76: 53 | AO76: 0.70
B77: 22세 | C77: 계 | D77: 1,682 | E77: 1.01 | F77: 120.16 | G77: 273 | H77: 2.05 | I77: 114.96 | J77: 39 | K77: 0.74 | L77: 160.00 | M77: 83 | N77: 0.68 | O77: 118.42 | P77: 149 | Q77: 1.03 | R77: 129.23 | S77: 304 | T77: 1.14 | U77: 141.27 | V77: 198 | W77: 1.12 | X77: 125.00 | Y77: 127 | Z77: 0.79 | AA77: 92.42 | AB77: 111 | AC77: 0.70 | AD77: 101.82 | AE77: 138 | AF77: 1.11 | AG77: 119.05 | AH77: 41 | AI77: 0.70 | AJ77: 173.33 | AK77: 88 | AL77: 0.73 | AM77: 114.63 | AN77: 131 | AO77: 0.90 | AP77: 101.54
C78: 남 | D78: 918 | E78: 1.09 | G78: 146 | H78: 2.10 | J78: 24 | K78: 0.87 | M78: 45 | N78: 0.72 | P78: 84 | Q78: 1.17 | S78: 178 | T78: 1.34 | V78: 110 | W78: 1.19 | Y78: 61 | Z78: 0.74 | AB78: 56 | AC78: 0.69 | AE78: 75 | AF78: 1.13 | AH78: 26 | AI78: 0.80 | AK78: 47 | AL78: 0.84 | AN78: 66 | AO78: 0.94
C79: 여 | D79: 764 | E79: 0.93 | G79: 127 | H79: 2.00 | J79: 15 | K79: 0.59 | M79: 38 | N79: 0.63 | P79: 65 | Q79: 0.88 | S79: 126 | T79: 0.93 | V79: 88 | W79: 1.05 | Y79: 66 | Z79: 0.85 | AB79: 55 | AC79: 0.71 | AE79: 63 | AF79: 1.09 | AH79: 15 | AI79: 0.57 | AK79: 41 | AL79: 0.64 | AN79: 65 | AO79: 0.86
B80: 23세 | C80: 계 | D80: 1,830 | E80: 1.10 | F80: 119.16 | G80: 268 | H80: 2.02 | I80: 116.13 | J80: 36 | K80: 0.68 | L80: 111.76 | M80: 96 | N80: 0.78 | O80: 100.00 | P80: 179 | Q80: 1.23 | R80: 86.46 | S80: 312 | T80: 1.17 | U80: 112.24 | V80: 210 | W80: 1.19 | X80: 141.38 | Y80: 154 | Z80: 0.96 | AA80: 152.46 | AB80: 134 | AC80: 0.85 | AD80: 119.67 | AE80: 156 | AF80: 1.26 | AG80: 126.09 | AH80: 55 | AI80: 0.93 | AJ80: 129.17 | AK80: 91 | AL80: 0.75 | AM80: 102.22 | AN80: 139 | AO80: 0.95 | AP80: 148.21
C81: 남 | D81: 995 | E81: 1.18 | G81: 144 | H81: 2.07 | J81: 19 | K81: 0.69 | M81: 48 | N81: 0.77 | P81: 83 | Q81: 1.16 | S81: 165 | T81: 1.24 | V81: 123 | W81: 1.33 | Y81: 93 | Z81: 1.13 | AB81: 73 | AC81: 0.90 | AE81: 87 | AF81: 1.31 | AH81: 31 | AI81: 0.96 | AK81: 46 | AL81: 0.82 | AN81: 83 | AO81: 1.18
C82: 여 | D82: 835 | E82: 1.02 | G82: 124 | H82: 1.96 | J82: 17 | K82: 0.67 | M82: 48 | N82: 0.80 | P82: 96 | Q82: 1.31 | S82: 147 | T82: 1.09 | V82: 87 | W82: 1.04 | Y82: 61 | Z82: 0.78 | AB82: 61 | AC82: 0.79 | AE82: 69 | AF82: 1.20 | AH82: 24 | AI82: 0.91 | AK82: 45 | AL82: 0.70 | AN82: 56 | AO82: 0.74
B83: 24세 | C83: 계 | D83: 2,023 | E83: 1.21 | F83: 118.70 | G83: 217 | H83: 1.63 | I83: 178.21 | J83: 54 | K83: 1.02 | L83: 92.86 | M83: 105 | N83: 0.86 | O83: 123.40 | P83: 178 | Q83: 1.23 | R83: 104.60 | S83: 371 | T83: 1.39 | U83: 129.01 | V83: 249 | W83: 1.41 | X83: 118.42 | Y83: 179 | Z83: 1.11 | AA83: 90.43 | AB83: 123 | AC83: 0.78 | AD83: 161.70 | AE83: 155 | AF83: 1.25 | AG83: 112.33 | AH83: 80 | AI83: 1.36 | AJ83: 100.00 | AK83: 136 | AL83: 1.13 | AM83: 106.06 | AN83: 176 | AO83: 1.21 | AP83: 97.75
C84: 남 | D84: 1,098 | E84: 1.30 | G84: 139 | H84: 2.00 | J84: 26 | K84: 0.94 | M84: 58 | N84: 0.93 | P84: 91 | Q84: 1.27 | S84: 209 | T84: 1.57 | V84: 135 | W84: 1.46 | Y84: 85 | Z84: 1.03 | AB84: 76 | AC84: 0.94 | AE84: 82 | AF84: 1.23 | AH84: 40 | AI84: 1.23 | AK84: 70 | AL84: 1.24 | AN84: 87 | AO84: 1.24
C85: 여 | D85: 925 | E85: 1.13 | G85: 78 | H85: 1.23 | J85: 28 | K85: 1.11 | M85: 47 | N85: 0.78 | P85: 87 | Q85: 1.18 | S85: 162 | T85: 1.20 | V85: 114 | W85: 1.36 | Y85: 94 | Z85: 1.21 | AB85: 47 | AC85: 0.61 | AE85: 73 | AF85: 1.27 | AH85: 40 | AI85: 1.52 | AK85: 66 | AL85: 1.02 | AN85: 89 | AO85: 1.18
B86: 25세 | C86: 계 | D86: 1,982 | E86: 1.19 | F86: 124.97 | G86: 196 | H86: 1.48 | I86: 117.78 | J86: 51 | K86: 0.96 | L86: 155.00 | M86: 112 | N86: 0.91 | O86: 103.64 | P86: 158 | Q86: 1.09 | R86: 119.44 | S86: 331 | T86: 1.24 | U86: 112.18 | V86: 266 | W86: 1.51 | X86: 121.67 | Y86: 182 | Z86: 1.13 | AA86: 116.67 | AB86: 150 | AC86: 0.95 | AD86: 111.27 | AE86: 159 | AF86: 1.28 | AG86: 183.93 | AH86: 94 | AI86: 1.60 | AJ86: 123.81 | AK86: 114 | AL86: 0.94 | AM86: 115.09 | AN86: 169 | AO86: 1.16 | AP86: 172.58
C87: 남 | D87: 1,101 | E87: 1.30 | G87: 106 | H87: 1.53 | J87: 31 | K87: 1.12 | M87: 57 | N87: 0.91 | P87: 86 | Q87: 1.20 | S87: 175 | T87: 1.32 | V87: 146 | W87: 1.58 | Y87: 98 | Z87: 1.19 | AB87: 79 | AC87: 0.98 | AE87: 103 | AF87: 1.55 | AH87: 52 | AI87: 1.60 | AK87: 61 | AL87: 1.08 | AN87: 107 | AO87: 1.52
C88: 여 | D88: 881 | E88: 1.07 | G88: 90 | H88: 1.42 | J88: 20 | K88: 0.79 | M88: 55 | N88: 0.91 | P88: 72 | Q88: 0.98 | S88: 156 | T88: 1.16 | V88: 120 | W88: 1.44 | Y88: 84 | Z88: 1.08 | AB88: 71 | AC88: 0.92 | AE88: 56 | AF88: 0.97 | AH88: 42 | AI88: 1.59 | AK88: 53 | AL88: 0.82 | AN88: 62 | AO88: 0.82
B89: 26세 | C89: 계 | D89: 2,082 | E89: 1.25 | F89: 133.41 | G89: 158 | H89: 1.19 | I89: 177.19 | J89: 57 | K89: 1.08 | L89: 137.50 | M89: 121 | N89: 0.99 | O89: 146.94 | P89: 167 | Q89: 1.15 | R89: 149.25 | S89: 339 | T89: 1.27 | U89: 114.56 | V89: 247 | W89: 1.40 | X89: 102.46 | Y89: 199 | Z89: 1.24 | AA89: 145.68 | AB89: 170 | AC89: 1.07 | AD89: 109.88 | AE89: 212 | AF89: 1.71 | AG89: 135.56 | AH89: 114 | AI89: 1.94 | AJ89: 192.31 | AK89: 143 | AL89: 1.18 | AM89: 130.65 | AN89: 155 | AO89: 1.06 | AP89: 150.00
C90: 남 | D90: 1,190 | E90: 1.41 | G90: 101 | H90: 1.45 | J90: 33 | K90: 1.19 | M90: 72 | N90: 1.15 | P90: 100 | Q90: 1.39 | S90: 181 | T90: 1.36 | V90: 125 | W90: 1.35 | Y90: 118 | Z90: 1.43 | AB90: 89 | AC90: 1.10 | AE90: 122 | AF90: 1.84 | AH90: 75 | AI90: 2.31 | AK90: 81 | AL90: 1.44 | AN90: 93 | AO90: 1.32
C91: 여 | D91: 892 | E91: 1.09 | G91: 57 | H91: 0.90 | J91: 24 | K91: 0.95 | M91: 49 | N91: 0.81 | P91: 67 | Q91: 0.91 | S91: 158 | T91: 1.17 | V91: 122 | W91: 1.46 | Y91: 81 | Z91: 1.04 | AB91: 81 | AC91: 1.05 | AE91: 90 | AF91: 1.56 | AH91: 39 | AI91: 1.48 | AK91: 62 | AL91: 0.96 | AN91: 62 | AO91: 0.82
B92: 27세 | C92: 계 | D92: 2,070 | E92: 1.24 | F92: 124.51 | G92: 156 | H92: 1.17 | I92: 105.26 | J92: 47 | K92: 0.89 | L92: 88.00 | M92: 139 | N92: 1.13 | O92: 101.45 | P92: 170 | Q92: 1.17 | R92: 153.73 | S92: 316 | T92: 1.18 | U92: 100.00 | V92: 218 | W92: 1.24 | X92: 150.57 | Y92: 216 | Z92: 1.34 | AA92: 116.00 | AB92: 194 | AC92: 1.23 | AD92: 115.56 | AE92: 191 | AF92: 1.54 | AG92: 158.11 | AH92: 111 | AI92: 1.89 | AJ92: 136.17 | AK92: 151 | AL92: 1.25 | AM92: 104.05 | AN92: 161 | AO92: 1.11 | AP92: 192.73
C93: 남 | D93: 1,148 | E93: 1.36 | G93: 80 | H93: 1.15 | J93: 22 | K93: 0.80 | M93: 70 | N93: 1.12 | P93: 103 | Q93: 1.44 | S93: 158 | T93: 1.19 | V93: 131 | W93: 1.42 | Y93: 116 | Z93: 1.40 | AB93: 104 | AC93: 1.29 | AE93: 117 | AF93: 1.76 | AH93: 64 | AI93: 1.97 | AK93: 77 | AL93: 1.37 | AN93: 106 | AO93: 1.51
C94: 여 | D94: 922 | E94: 1.12 | G94: 76 | H94: 1.20 | J94: 25 | K94: 0.99 | M94: 69 | N94: 1.15 | P94: 67 | Q94: 0.91 | S94: 158 | T94: 1.17 | V94: 87 | W94: 1.04 | Y94: 100 | Z94: 1.28 | AB94: 90 | AC94: 1.16 | AE94: 74 | AF94: 1.29 | AH94: 47 | AI94: 1.78 | AK94: 74 | AL94: 1.15 | AN94: 55 | AO94: 0.73
B95: 28세 | C95: 계 | D95: 2,247 | E95: 1.35 | F95: 117.31 | G95: 166 | H95: 1.25 | I95: 137.14 | J95: 61 | K95: 1.15 | L95: 79.41 | M95: 146 | N95: 1.19 | O95: 121.21 | P95: 177 | Q95: 1.22 | R95: 101.14 | S95: 333 | T95: 1.24 | U95: 105.56 | V95: 297 | W95: 1.69 | X95: 120.00 | Y95: 249 | Z95: 1.55 | AA95: 120.35 | AB95: 185 | AC95: 1.17 | AD95: 128.40 | AE95: 195 | AF95: 1.57 | AG95: 160.00 | AH95: 118 | AI95: 2.01 | AJ95: 140.82 | AK95: 144 | AL95: 1.19 | AM95: 92.00 | AN95: 176 | AO95: 1.21 | AP95: 104.65
C96: 남 | D96: 1,213 | E96: 1.43 | G96: 96 | H96: 1.38 | J96: 27 | K96: 0.98 | M96: 80 | N96: 1.28 | P96: 89 | Q96: 1.24 | S96: 171 | T96: 1.29 | V96: 162 | W96: 1.75 | Y96: 136 | Z96: 1.65 | AB96: 104 | AC96: 1.29 | AE96: 120 | AF96: 1.81 | AH96: 69 | AI96: 2.13 | AK96: 69 | AL96: 1.23 | AN96: 90 | AO96: 1.28
C97: 여 | D97: 1,034 | E97: 1.26 | G97: 70 | H97: 1.10 | J97: 34 | K97: 1.34 | M97: 66 | N97: 1.10 | P97: 88 | Q97: 1.20 | S97: 162 | T97: 1.20 | V97: 135 | W97: 1.61 | Y97: 113 | Z97: 1.45 | AB97: 81 | AC97: 1.05 | AE97: 75 | AF97: 1.30 | AH97: 49 | AI97: 1.86 | AK97: 75 | AL97: 1.16 | AN97: 86 | AO97: 1.14
B98: 29세 | C98: 계 | D98: 2,193 | E98: 1.32 | F98: 124.69 | G98: 148 | H98: 1.11 | I98: 120.90 | J98: 64 | K98: 1.21 | L98: 128.57 | M98: 148 | N98: 1.21 | O98: 94.74 | P98: 184 | Q98: 1.27 | R98: 93.68 | S98: 327 | T98: 1.22 | U98: 130.28 | V98: 285 | W98: 1.62 | X98: 152.21 | Y98: 248 | Z98: 1.54 | AA98: 129.63 | AB98: 221 | AC98: 1.40 | AD98: 106.54 | AE98: 190 | AF98: 1.53 | AG98: 143.59 | AH98: 88 | AI98: 1.50 | AJ98: 214.29 | AK98: 139 | AL98: 1.15 | AM98: 104.41 | AN98: 151 | AO98: 1.04 | AP98: 128.79
C99: 남 | D99: 1,217 | E99: 1.44 | G99: 81 | H99: 1.17 | J99: 36 | K99: 1.30 | M99: 72 | N99: 1.15 | P99: 89 | Q99: 1.24 | S99: 185 | T99: 1.39 | V99: 172 | W99: 1.86 | Y99: 140 | Z99: 1.69 | AB99: 114 | AC99: 1.41 | AE99: 112 | AF99: 1.69 | AH99: 60 | AI99: 1.85 | AK99: 71 | AL99: 1.26 | AN99: 85 | AO99: 1.21
C100: 여 | D100: 976 | E100: 1.19 | G100: 67 | H100: 1.06 | J100: 28 | K100: 1.11 | M100: 76 | N100: 1.26 | P100: 95 | Q100: 1.29 | S100: 142 | T100: 1.05 | V100: 113 | W100: 1.35 | Y100: 108 | Z100: 1.38 | AB100: 107 | AC100: 1.38 | AE100: 78 | AF100: 1.36 | AH100: 28 | AI100: 1.06 | AK100: 68 | AL100: 1.06 | AN100: 66 | AO100: 0.88
B101: 30세 | C101: 계 | D101: 2,231 | E101: 1.34 | F101: 125.81 | G101: 145 | H101: 1.09 | I101: 137.70 | J101: 68 | K101: 1.28 | L101: 119.35 | M101: 155 | N101: 1.26 | O101: 98.72 | P101: 170 | Q101: 1.17 | R101: 142.86 | S101: 336 | T101: 1.25 | U101: 116.77 | V101: 261 | W101: 1.48 | X101: 133.04 | Y101: 268 | Z101: 1.67 | AA101: 141.44 | AB101: 223 | AC101: 1.41 | AD101: 116.50 | AE101: 214 | AF101: 1.73 | AG101: 135.16 | AH101: 97 | AI101: 1.65 | AJ101: 130.95 | AK101: 153 | AL101: 1.27 | AM101: 135.38 | AN101: 141 | AO101: 0.97 | AP101: 104.35
C102: 남 | D102: 1,243 | E102: 1.47 | G102: 84 | H102: 1.21 | J102: 37 | K102: 1.34 | M102: 77 | N102: 1.23 | P102: 100 | Q102: 1.39 | S102: 181 | T102: 1.36 | V102: 149 | W102: 1.61 | Y102: 157 | Z102: 1.90 | AB102: 120 | AC102: 1.49 | AE102: 123 | AF102: 1.85 | AH102: 55 | AI102: 1.69 | AK102: 88 | AL102: 1.56 | AN102: 72 | AO102: 1.02
C103: 여 | D103: 988 | E103: 1.21 | G103: 61 | H103: 0.96 | J103: 31 | K103: 1.22 | M103: 78 | N103: 1.29 | P103: 70 | Q103: 0.95 | S103: 155 | T103: 1.15 | V103: 112 | W103: 1.34 | Y103: 111 | Z103: 1.42 | AB103: 103 | AC103: 1.33 | AE103: 91 | AF103: 1.58 | AH103: 42 | AI103: 1.59 | AK103: 65 | AL103: 1.01 | AN103: 69 | AO103: 0.92
B104: 31세 | C104: 계 | D104: 2,168 | E104: 1.30 | F104: 123.74 | G104: 153 | H104: 1.15 | I104: 128.36 | J104: 39 | K104: 0.74 | L104: 116.67 | M104: 154 | N104: 1.26 | O104: 133.33 | P104: 160 | Q104: 1.10 | R104: 146.15 | S104: 301 | T104: 1.12 | U104: 118.12 | V104: 262 | W104: 1.49 | X104: 167.35 | Y104: 262 | Z104: 1.63 | AA104: 122.03 | AB104: 251 | AC104: 1.59 | AD104: 90.15 | AE104: 190 | AF104: 1.53 | AG104: 150.00 | AH104: 105 | AI104: 1.78 | AJ104: 144.19 | AK104: 159 | AL104: 1.32 | AM104: 91.57 | AN104: 132 | AO104: 0.91 | AP104: 103.08
C105: 남 | D105: 1,199 | E105: 1.42 | G105: 86 | H105: 1.24 | J105: 21 | K105: 0.76 | M105: 88 | N105: 1.41 | P105: 95 | Q105: 1.32 | S105: 163 | T105: 1.23 | V105: 164 | W105: 1.77 | Y105: 144 | Z105: 1.74 | AB105: 119 | AC105: 1.47 | AE105: 114 | AF105: 1.72 | AH105: 62 | AI105: 1.91 | AK105: 76 | AL105: 1.35 | AN105: 67 | AO105: 0.95
C106: 여 | D106: 969 | E106: 1.18 | G106: 67 | H106: 1.06 | J106: 18 | K106: 0.71 | M106: 66 | N106: 1.10 | P106: 65 | Q106: 0.88 | S106: 138 | T106: 1.02 | V106: 98 | W106: 1.17 | Y106: 118 | Z106: 1.51 | AB106: 132 | AC106: 1.71 | AE106: 76 | AF106: 1.32 | AH106: 43 | AI106: 1.63 | AK106: 83 | AL106: 1.29 | AN106: 65 | AO106: 0.86
B107: 32세 | C107: 계 | D107: 2,195 | E107: 1.32 | F107: 130.57 | G107: 156 | H107: 1.17 | I107: 136.36 | J107: 60 | K107: 1.13 | L107: 160.87 | M107: 174 | N107: 1.42 | O107: 135.14 | P107: 154 | Q107: 1.06 | R107: 136.92 | S107: 304 | T107: 1.14 | U107: 109.66 | V107: 227 | W107: 1.29 | X107: 138.95 | Y107: 286 | Z107: 1.78 | AA107: 105.76 | AB107: 235 | AC107: 1.49 | AD107: 111.71 | AE107: 183 | AF107: 1.48 | AG107: 205.00 | AH107: 91 | AI107: 1.55 | AJ107: 184.38 | AK107: 154 | AL107: 1.28 | AM107: 120.00 | AN107: 171 | AO107: 1.17 | AP107: 137.50
C108: 남 | D108: 1,243 | E108: 1.47 | G108: 90 | H108: 1.30 | J108: 37 | K108: 1.34 | M108: 100 | N108: 1.60 | P108: 89 | Q108: 1.24 | S108: 159 | T108: 1.20 | V108: 132 | W108: 1.43 | Y108: 147 | Z108: 1.78 | AB108: 124 | AC108: 1.54 | AE108: 123 | AF108: 1.85 | AH108: 59 | AI108: 1.82 | AK108: 84 | AL108: 1.49 | AN108: 99 | AO108: 1.41
C109: 여 | D109: 952 | E109: 1.16 | G109: 66 | H109: 1.04 | J109: 23 | K109: 0.91 | M109: 74 | N109: 1.23 | P109: 65 | Q109: 0.88 | S109: 145 | T109: 1.07 | V109: 95 | W109: 1.14 | Y109: 139 | Z109: 1.78 | AB109: 111 | AC109: 1.43 | AE109: 60 | AF109: 1.04 | AH109: 32 | AI109: 1.21 | AK109: 70 | AL109: 1.09 | AN109: 72 | AO109: 0.96
B110: 33세 | C110: 계 | D110: 2,193 | E110: 1.32 | F110: 129.63 | G110: 147 | H110: 1.11 | I110: 157.89 | J110: 67 | K110: 1.27 | L110: 139.29 | M110: 162 | N110: 1.32 | O110: 149.23 | P110: 140 | Q110: 0.96 | R110: 185.71 | S110: 329 | T110: 1.23 | U110: 106.92 | V110: 221 | W110: 1.25 | X110: 137.63 | Y110: 290 | Z110: 1.81 | AA110: 139.67 | AB110: 242 | AC110: 1.53 | AD110: 92.06 | AE110: 189 | AF110: 1.52 | AG110: 190.77 | AH110: 96 | AI110: 1.63 | AJ110: 209.68 | AK110: 176 | AL110: 1.46 | AM110: 77.78 | AN110: 134 | AO110: 0.92 | AP110: 116.13
C111: 남 | D111: 1,238 | E111: 1.46 | G111: 90 | H111: 1.30 | J111: 39 | K111: 1.41 | M111: 97 | N111: 1.56 | P111: 91 | Q111: 1.27 | S111: 170 | T111: 1.28 | V111: 128 | W111: 1.38 | Y111: 169 | Z111: 2.04 | AB111: 116 | AC111: 1.44 | AE111: 124 | AF111: 1.87 | AH111: 65 | AI111: 2.00 | AK111: 77 | AL111: 1.37 | AN111: 72 | AO111: 1.02
C112: 여 | D112: 955 | E112: 1.16 | G112: 57 | H112: 0.90 | J112: 28 | K112: 1.11 | M112: 65 | N112: 1.08 | P112: 49 | Q112: 0.67 | S112: 159 | T112: 1.18 | V112: 93 | W112: 1.11 | Y112: 121 | Z112: 1.55 | AB112: 126 | AC112: 1.63 | AE112: 65 | AF112: 1.13 | AH112: 31 | AI112: 1.17 | AK112: 99 | AL112: 1.54 | AN112: 62 | AO112: 0.82
B113: 34세 | C113: 계 | D113: 1,931 | E113: 1.16 | F113: 126.11 | G113: 111 | H113: 0.84 | I113: 170.73 | J113: 57 | K113: 1.08 | L113: 307.14 | M113: 143 | N113: 1.17 | O113: 120.00 | P113: 136 | Q113: 0.94 | R113: 115.87 | S113: 288 | T113: 1.08 | U113: 89.47 | V113: 193 | W113: 1.10 | X113: 196.92 | Y113: 254 | Z113: 1.58 | AA113: 113.45 | AB113: 248 | AC113: 1.57 | AD113: 106.67 | AE113: 147 | AF113: 1.19 | AG113: 172.22 | AH113: 76 | AI113: 1.29 | AJ113: 204.00 | AK113: 139 | AL113: 1.15 | AM113: 113.85 | AN113: 139 | AO113: 0.95 | AP113: 95.77
C114: 남 | D114: 1,077 | E114: 1.27 | G114: 70 | H114: 1.01 | J114: 43 | K114: 1.56 | M114: 78 | N114: 1.25 | P114: 73 | Q114: 1.02 | S114: 136 | T114: 1.02 | V114: 128 | W114: 1.38 | Y114: 135 | Z114: 1.63 | AB114: 128 | AC114: 1.59 | AE114: 93 | AF114: 1.40 | AH114: 51 | AI114: 1.57 | AK114: 74 | AL114: 1.32 | AN114: 68 | AO114: 0.97
C115: 여 | D115: 854 | E115: 1.04 | G115: 41 | H115: 0.65 | J115: 14 | K115: 0.55 | M115: 65 | N115: 1.08 | P115: 63 | Q115: 0.86 | S115: 152 | T115: 1.13 | V115: 65 | W115: 0.78 | Y115: 119 | Z115: 1.53 | AB115: 120 | AC115: 1.55 | AE115: 54 | AF115: 0.94 | AH115: 25 | AI115: 0.95 | AK115: 65 | AL115: 1.01 | AN115: 71 | AO115: 0.94
B116: 35세 | C116: 계 | D116: 1,865 | E116: 1.12 | F116: 136.98 | G116: 113 | H116: 0.85 | I116: 162.79 | J116: 63 | K116: 1.19 | L116: 186.36 | M116: 145 | N116: 1.18 | O116: 154.39 | P116: 118 | Q116: 0.81 | R116: 131.37 | S116: 262 | T116: 0.98 | U116: 113.01 | V116: 168 | W116: 0.95 | X116: 166.67 | Y116: 254 | Z116: 1.58 | AA116: 130.91 | AB116: 238 | AC116: 1.50 | AD116: 93.50 | AE116: 133 | AF116: 1.07 | AG116: 224.39 | AH116: 116 | AI116: 1.97 | AJ116: 222.22 | AK116: 134 | AL116: 1.11 | AM116: 106.15 | AN116: 121 | AO116: 0.83 | AP116: 128.30
C117: 남 | D117: 1,078 | E117: 1.27 | G117: 70 | H117: 1.01 | J117: 41 | K117: 1.48 | M117: 88 | N117: 1.41 | P117: 67 | Q117: 0.93 | S117: 139 | T117: 1.05 | V117: 105 | W117: 1.13 | Y117: 144 | Z117: 1.74 | AB117: 115 | AC117: 1.42 | AE117: 92 | AF117: 1.38 | AH117: 80 | AI117: 2.46 | AK117: 69 | AL117: 1.23 | AN117: 68 | AO117: 0.97
C118: 여 | D118: 787 | E118: 0.96 | G118: 43 | H118: 0.68 | J118: 22 | K118: 0.87 | M118: 57 | N118: 0.95 | P118: 51 | Q118: 0.69 | S118: 123 | T118: 0.91 | V118: 63 | W118: 0.75 | Y118: 110 | Z118: 1.41 | AB118: 123 | AC118: 1.59 | AE118: 41 | AF118: 0.71 | AH118: 36 | AI118: 1.36 | AK118: 65 | AL118: 1.01 | AN118: 53 | AO118: 0.70
B119: 36세 | C119: 계 | D119: 1,786 | E119: 1.07 | F119: 136.56 | G119: 116 | H119: 0.87 | I119: 141.67 | J119: 55 | K119: 1.04 | L119: 111.54 | M119: 127 | N119: 1.04 | O119: 139.62 | P119: 122 | Q119: 0.84 | R119: 106.78 | S119: 273 | T119: 1.02 | U119: 129.41 | V119: 170 | W119: 0.96 | X119: 174.19 | Y119: 235 | Z119: 1.46 | AA119: 139.80 | AB119: 214 | AC119: 1.35 | AD119: 140.45 | AE119: 141 | AF119: 1.14 | AG119: 147.37 | AH119: 79 | AI119: 1.34 | AJ119: 229.17 | AK119: 121 | AL119: 1.00 | AM119: 108.62 | AN119: 133 | AO119: 0.91 | AP119: 114.52
C120: 남 | D120: 1,031 | E120: 1.22 | G120: 68 | H120: 0.98 | J120: 29 | K120: 1.05 | M120: 74 | N120: 1.19 | P120: 63 | Q120: 0.88 | S120: 154 | T120: 1.16 | V120: 108 | W120: 1.17 | Y120: 137 | Z120: 1.66 | AB120: 125 | AC120: 1.55 | AE120: 84 | AF120: 1.26 | AH120: 55 | AI120: 1.69 | AK120: 63 | AL120: 1.12 | AN120: 71 | AO120: 1.01
C121: 여 | D121: 755 | E121: 0.92 | G121: 48 | H121: 0.76 | J121: 26 | K121: 1.03 | M121: 53 | N121: 0.88 | P121: 59 | Q121: 0.80 | S121: 119 | T121: 0.88 | V121: 62 | W121: 0.74 | Y121: 98 | Z121: 1.26 | AB121: 89 | AC121: 1.15 | AE121: 57 | AF121: 0.99 | AH121: 24 | AI121: 0.91 | AK121: 58 | AL121: 0.90 | AN121: 62 | AO121: 0.82
B122: 37세 | C122: 계 | D122: 1,719 | E122: 1.03 | F122: 128.89 | G122: 114 | H122: 0.86 | I122: 103.57 | J122: 58 | K122: 1.10 | L122: 132.00 | M122: 124 | N122: 1.01 | O122: 138.46 | P122: 101 | Q122: 0.70 | R122: 119.57 | S122: 264 | T122: 0.99 | U122: 111.20 | V122: 168 | W122: 0.95 | X122: 133.33 | Y122: 196 | Z122: 1.22 | AA122: 154.55 | AB122: 241 | AC122: 1.52 | AD122: 115.18 | AE122: 133 | AF122: 1.07 | AG122: 171.43 | AH122: 79 | AI122: 1.34 | AJ122: 203.85 | AK122: 133 | AL122: 1.10 | AM122: 137.50 | AN122: 108 | AO122: 0.74 | AP122: 96.36
C123: 남 | D123: 968 | E123: 1.14 | G123: 58 | H123: 0.83 | J123: 33 | K123: 1.19 | M123: 72 | N123: 1.15 | P123: 55 | Q123: 0.77 | S123: 139 | T123: 1.05 | V123: 96 | W123: 1.04 | Y123: 119 | Z123: 1.44 | AB123: 129 | AC123: 1.60 | AE123: 84 | AF123: 1.26 | AH123: 53 | AI123: 1.63 | AK123: 77 | AL123: 1.37 | AN123: 53 | AO123: 0.75
C124: 여 | D124: 751 | E124: 0.92 | G124: 56 | H124: 0.88 | J124: 25 | K124: 0.99 | M124: 52 | N124: 0.86 | P124: 46 | Q124: 0.63 | S124: 125 | T124: 0.93 | V124: 72 | W124: 0.86 | Y124: 77 | Z124: 0.99 | AB124: 112 | AC124: 1.45 | AE124: 49 | AF124: 0.85 | AH124: 26 | AI124: 0.99 | AK124: 56 | AL124: 0.87 | AN124: 55 | AO124: 0.73
B125: 38세 | C125: 계 | D125: 1,736 | E125: 1.04 | F125: 128.12 | G125: 123 | H125: 0.93 | I125: 151.02 | J125: 37 | K125: 0.70 | L125: 146.67 | M125: 134 | N125: 1.09 | O125: 100.00 | P125: 101 | Q125: 0.70 | R125: 124.44 | S125: 287 | T125: 1.07 | U125: 124.22 | V125: 164 | W125: 0.93 | X125: 164.52 | Y125: 204 | Z125: 1.27 | AA125: 140.00 | AB125: 253 | AC125: 1.60 | AD125: 116.24 | AE125: 117 | AF125: 0.94 | AG125: 143.75 | AH125: 68 | AI125: 1.16 | AJ125: 195.65 | AK125: 125 | AL125: 1.04 | AM125: 115.52 | AN125: 123 | AO125: 0.84 | AP125: 92.19
C126: 남 | D126: 975 | E126: 1.15 | G126: 74 | H126: 1.07 | J126: 22 | K126: 0.80 | M126: 67 | N126: 1.07 | P126: 56 | Q126: 0.78 | S126: 159 | T126: 1.20 | V126: 102 | W126: 1.10 | Y126: 119 | Z126: 1.44 | AB126: 136 | AC126: 1.68 | AE126: 69 | AF126: 1.04 | AH126: 45 | AI126: 1.39 | AK126: 67 | AL126: 1.19 | AN126: 59 | AO126: 0.84
C127: 여 | D127: 761 | E127: 0.93 | G127: 49 | H127: 0.77 | J127: 15 | K127: 0.59 | M127: 67 | N127: 1.11 | P127: 45 | Q127: 0.61 | S127: 128 | T127: 0.95 | V127: 62 | W127: 0.74 | Y127: 85 | Z127: 1.09 | AB127: 117 | AC127: 1.51 | AE127: 48 | AF127: 0.83 | AH127: 23 | AI127: 0.87 | AK127: 58 | AL127: 0.90 | AN127: 64 | AO127: 0.85
B128: 39세 | C128: 계 | D128: 1,763 | E128: 1.06 | F128: 120.93 | G128: 129 | H128: 0.97 | I128: 168.75 | J128: 59 | K128: 1.11 | L128: 73.53 | M128: 117 | N128: 0.95 | O128: 160.00 | P128: 110 | Q128: 0.76 | R128: 124.49 | S128: 250 | T128: 0.93 | U128: 111.86 | V128: 169 | W128: 0.96 | X128: 134.72 | Y128: 203 | Z128: 1.26 | AA128: 103.00 | AB128: 275 | AC128: 1.74 | AD128: 95.04 | AE128: 125 | AF128: 1.01 | AG128: 135.85 | AH128: 76 | AI128: 1.29 | AJ128: 123.53 | AK128: 139 | AL128: 1.15 | AM128: 117.19 | AN128: 111 | AO128: 0.76 | AP128: 177.50
C129: 남 | D129: 965 | E129: 1.14 | G129: 81 | H129: 1.17 | J129: 25 | K129: 0.91 | M129: 72 | N129: 1.15 | P129: 61 | Q129: 0.85 | S129: 132 | T129: 0.99 | V129: 97 | W129: 1.05 | Y129: 103 | Z129: 1.25 | AB129: 134 | AC129: 1.66 | AE129: 72 | AF129: 1.08 | AH129: 42 | AI129: 1.29 | AK129: 75 | AL129: 1.33 | AN129: 71 | AO129: 1.01
C130: 여 | D130: 798 | E130: 0.97 | G130: 48 | H130: 0.76 | J130: 34 | K130: 1.34 | M130: 45 | N130: 0.75 | P130: 49 | Q130: 0.67 | S130: 118 | T130: 0.87 | V130: 72 | W130: 0.86 | Y130: 100 | Z130: 1.28 | AB130: 141 | AC130: 1.82 | AE130: 53 | AF130: 0.92 | AH130: 34 | AI130: 1.29 | AK130: 64 | AL130: 0.99 | AN130: 40 | AO130: 0.53
B131: 40세 | C131: 계 | D131: 1,707 | E131: 1.02 | F131: 121.98 | G131: 102 | H131: 0.77 | I131: 155.00 | J131: 54 | K131: 1.02 | L131: 92.86 | M131: 123 | N131: 1.00 | O131: 141.18 | P131: 106 | Q131: 0.73 | R131: 135.56 | S131: 278 | T131: 1.04 | U131: 112.21 | V131: 141 | W131: 0.80 | X131: 135.00 | Y131: 193 | Z131: 1.20 | AA131: 141.25 | AB131: 272 | AC131: 1.72 | AD131: 98.54 | AE131: 114 | AF131: 0.92 | AG131: 147.83 | AH131: 74 | AI131: 1.26 | AJ131: 208.33 | AK131: 121 | AL131: 1.00 | AM131: 98.36 | AN131: 129 | AO131: 0.89 | AP131: 95.45
C132: 남 | D132: 938 | E132: 1.11 | G132: 62 | H132: 0.89 | J132: 26 | K132: 0.94 | M132: 72 | N132: 1.15 | P132: 61 | Q132: 0.85 | S132: 147 | T132: 1.11 | V132: 81 | W132: 0.88 | Y132: 113 | Z132: 1.37 | AB132: 135 | AC132: 1.67 | AE132: 68 | AF132: 1.02 | AH132: 50 | AI132: 1.54 | AK132: 60 | AL132: 1.07 | AN132: 63 | AO132: 0.90
C133: 여 | D133: 769 | E133: 0.94 | G133: 40 | H133: 0.63 | J133: 28 | K133: 1.11 | M133: 51 | N133: 0.85 | P133: 45 | Q133: 0.61 | S133: 131 | T133: 0.97 | V133: 60 | W133: 0.72 | Y133: 80 | Z133: 1.03 | AB133: 137 | AC133: 1.77 | AE133: 46 | AF133: 0.80 | AH133: 24 | AI133: 0.91 | AK133: 61 | AL133: 0.95 | AN133: 66 | AO133: 0.88
B134: 41세 | C134: 계 | D134: 1,814 | E134: 1.09 | F134: 112.66 | G134: 101 | H134: 0.76 | I134: 110.42 | J134: 57 | K134: 1.08 | L134: 62.86 | M134: 133 | N134: 1.08 | O134: 111.11 | P134: 119 | Q134: 0.82 | R134: 120.37 | S134: 317 | T134: 1.18 | U134: 105.84 | V134: 151 | W134: 0.86 | X134: 132.31 | Y134: 185 | Z134: 1.15 | AA134: 134.18 | AB134: 269 | AC134: 1.70 | AD134: 90.78 | AE134: 125 | AF134: 1.01 | AG134: 135.85 | AH134: 106 | AI134: 1.80 | AJ134: 165.00 | AK134: 121 | AL134: 1.00 | AM134: 124.07 | AN134: 130 | AO134: 0.89 | AP134: 94.03
C135: 남 | D135: 961 | E135: 1.14 | G135: 53 | H135: 0.76 | J135: 22 | K135: 0.80 | M135: 70 | N135: 1.12 | P135: 65 | Q135: 0.91 | S135: 163 | T135: 1.23 | V135: 86 | W135: 0.93 | Y135: 106 | Z135: 1.28 | AB135: 128 | AC135: 1.59 | AE135: 72 | AF135: 1.08 | AH135: 66 | AI135: 2.03 | AK135: 67 | AL135: 1.19 | AN135: 63 | AO135: 0.90
C136: 여 | D136: 853 | E136: 1.04 | G136: 48 | H136: 0.76 | J136: 35 | K136: 1.38 | M136: 63 | N136: 1.05 | P136: 54 | Q136: 0.73 | S136: 154 | T136: 1.14 | V136: 65 | W136: 0.78 | Y136: 79 | Z136: 1.01 | AB136: 141 | AC136: 1.82 | AE136: 53 | AF136: 0.92 | AH136: 40 | AI136: 1.52 | AK136: 54 | AL136: 0.84 | AN136: 67 | AO136: 0.89
B137: 42세 | C137: 계 | D137: 2,037 | E137: 1.22 | F137: 118.09 | G137: 126 | H137: 0.95 | I137: 162.50 | J137: 70 | K137: 1.32 | L137: 125.81 | M137: 126 | N137: 1.03 | O137: 142.31 | P137: 149 | Q137: 1.03 | R137: 119.12 | S137: 363 | T137: 1.36 | U137: 87.11 | V137: 210 | W137: 1.19 | X137: 130.77 | Y137: 198 | Z137: 1.23 | AA137: 147.50 | AB137: 299 | AC137: 1.89 | AD137: 116.67 | AE137: 129 | AF137: 1.04 | AG137: 130.36 | AH137: 80 | AI137: 1.36 | AJ137: 142.42 | AK137: 132 | AL137: 1.09 | AM137: 103.08 | AN137: 155 | AO137: 1.06 | AP137: 98.72
C138: 남 | D138: 1,103 | E138: 1.30 | G138: 78 | H138: 1.12 | J138: 39 | K138: 1.41 | M138: 74 | N138: 1.19 | P138: 81 | Q138: 1.13 | S138: 169 | T138: 1.27 | V138: 119 | W138: 1.29 | Y138: 118 | Z138: 1.43 | AB138: 161 | AC138: 1.99 | AE138: 73 | AF138: 1.10 | AH138: 47 | AI138: 1.45 | AK138: 67 | AL138: 1.19 | AN138: 77 | AO138: 1.09
C139: 여 | D139: 934 | E139: 1.14 | G139: 48 | H139: 0.76 | J139: 31 | K139: 1.22 | M139: 52 | N139: 0.86 | P139: 68 | Q139: 0.92 | S139: 194 | T139: 1.44 | V139: 91 | W139: 1.09 | Y139: 80 | Z139: 1.03 | AB139: 138 | AC139: 1.78 | AE139: 56 | AF139: 0.97 | AH139: 33 | AI139: 1.25 | AK139: 65 | AL139: 1.01 | AN139: 78 | AO139: 1.04
B140: 43세 | C140: 계 | D140: 2,234 | E140: 1.34 | F140: 108.59 | G140: 137 | H140: 1.03 | I140: 144.64 | J140: 93 | K140: 1.76 | L140: 97.87 | M140: 161 | N140: 1.31 | O140: 103.80 | P140: 155 | Q140: 1.07 | R140: 96.20 | S140: 380 | T140: 1.42 | U140: 97.92 | V140: 218 | W140: 1.24 | X140: 103.74 | Y140: 215 | Z140: 1.34 | AA140: 97.25 | AB140: 320 | AC140: 2.02 | AD140: 111.92 | AE140: 144 | AF140: 1.16 | AG140: 157.14 | AH140: 85 | AI140: 1.44 | AJ140: 157.58 | AK140: 145 | AL140: 1.20 | AM140: 110.14 | AN140: 181 | AO140: 1.24 | AP140: 94.62
C141: 남 | D141: 1,163 | E141: 1.38 | G141: 81 | H141: 1.17 | J141: 46 | K141: 1.67 | M141: 82 | N141: 1.32 | P141: 76 | Q141: 1.06 | S141: 188 | T141: 1.41 | V141: 111 | W141: 1.20 | Y141: 106 | Z141: 1.28 | AB141: 169 | AC141: 2.09 | AE141: 88 | AF141: 1.32 | AH141: 52 | AI141: 1.60 | AK141: 76 | AL141: 1.35 | AN141: 88 | AO141: 1.25
C142: 여 | D142: 1,071 | E142: 1.31 | G142: 56 | H142: 0.88 | J142: 47 | K142: 1.86 | M142: 79 | N142: 1.31 | P142: 79 | Q142: 1.07 | S142: 192 | T142: 1.42 | V142: 107 | W142: 1.28 | Y142: 109 | Z142: 1.40 | AB142: 151 | AC142: 1.95 | AE142: 56 | AF142: 0.97 | AH142: 33 | AI142: 1.25 | AK142: 69 | AL142: 1.07 | AN142: 93 | AO142: 1.24
B143: 44세 | C143: 계 | D143: 2,387 | E143: 1.43 | F143: 114.66 | G143: 146 | H143: 1.10 | I143: 135.48 | J143: 81 | K143: 1.53 | L143: 170.00 | M143: 166 | N143: 1.35 | O143: 110.13 | P143: 187 | Q143: 1.29 | R143: 94.79 | S143: 453 | T143: 1.69 | U143: 91.14 | V143: 244 | W143: 1.39 | X143: 146.46 | Y143: 213 | Z143: 1.33 | AA143: 134.07 | AB143: 290 | AC143: 1.83 | AD143: 135.77 | AE143: 175 | AF143: 1.41 | AG143: 96.63 | AH143: 105 | AI143: 1.78 | AJ143: 138.64 | AK143: 164 | AL143: 1.36 | AM143: 97.59 | AN143: 163 | AO143: 1.12 | AP143: 106.33
C144: 남 | D144: 1,275 | E144: 1.51 | G144: 84 | H144: 1.21 | J144: 51 | K144: 1.85 | M144: 87 | N144: 1.40 | P144: 91 | Q144: 1.27 | S144: 216 | T144: 1.63 | V144: 145 | W144: 1.57 | Y144: 122 | Z144: 1.48 | AB144: 167 | AC144: 2.07 | AE144: 86 | AF144: 1.29 | AH144: 61 | AI144: 1.88 | AK144: 81 | AL144: 1.44 | AN144: 84 | AO144: 1.19
C145: 여 | D145: 1,112 | E145: 1.36 | G145: 62 | H145: 0.98 | J145: 30 | K145: 1.19 | M145: 79 | N145: 1.31 | P145: 96 | Q145: 1.31 | S145: 237 | T145: 1.76 | V145: 99 | W145: 1.18 | Y145: 91 | Z145: 1.17 | AB145: 123 | AC145: 1.59 | AE145: 89 | AF145: 1.55 | AH145: 44 | AI145: 1.67 | AK145: 83 | AL145: 1.29 | AN145: 79 | AO145: 1.05
B146: 45세 | C146: 계 | D146: 2,260 | E146: 1.36 | F146: 106.77 | G146: 152 | H146: 1.14 | I146: 137.50 | J146: 84 | K146: 1.59 | L146: 133.33 | M146: 141 | N146: 1.15 | O146: 93.15 | P146: 193 | Q146: 1.33 | R146: 98.97 | S146: 391 | T146: 1.46 | U146: 93.56 | V146: 226 | W146: 1.28 | X146: 132.99 | Y146: 185 | Z146: 1.15 | AA146: 128.40 | AB146: 322 | AC146: 2.04 | AD146: 111.84 | AE146: 143 | AF146: 1.15 | AG146: 104.29 | AH146: 99 | AI146: 1.68 | AJ146: 110.64 | AK146: 164 | AL146: 1.36 | AM146: 88.51 | AN146: 160 | AO146: 1.10 | AP146: 83.91
C147: 남 | D147: 1,167 | E147: 1.38 | G147: 88 | H147: 1.27 | J147: 48 | K147: 1.74 | M147: 68 | N147: 1.09 | P147: 96 | Q147: 1.34 | S147: 189 | T147: 1.42 | V147: 129 | W147: 1.39 | Y147: 104 | Z147: 1.26 | AB147: 170 | AC147: 2.11 | AE147: 73 | AF147: 1.10 | AH147: 52 | AI147: 1.60 | AK147: 77 | AL147: 1.37 | AN147: 73 | AO147: 1.04
C148: 여 | D148: 1,093 | E148: 1.33 | G148: 64 | H148: 1.01 | J148: 36 | K148: 1.42 | M148: 73 | N148: 1.21 | P148: 97 | Q148: 1.32 | S148: 202 | T148: 1.50 | V148: 97 | W148: 1.16 | Y148: 81 | Z148: 1.04 | AB148: 152 | AC148: 1.96 | AE148: 70 | AF148: 1.22 | AH148: 47 | AI148: 1.78 | AK148: 87 | AL148: 1.35 | AN148: 87 | AO148: 1.16
B149: 46세 | C149: 계 | D149: 2,255 | E149: 1.35 | F149: 108.99 | G149: 174 | H149: 1.31 | I149: 102.33 | J149: 73 | K149: 1.38 | L149: 143.33 | M149: 118 | N149: 0.96 | O149: 140.82 | P149: 205 | Q149: 1.41 | R149: 93.40 | S149: 420 | T149: 1.57 | U149: 87.50 | V149: 246 | W149: 1.40 | X149: 108.47 | Y149: 177 | Z149: 1.10 | AA149: 121.25 | AB149: 257 | AC149: 1.63 | AD149: 137.96 | AE149: 146 | AF149: 1.18 | AG149: 87.18 | AH149: 100 | AI149: 1.70 | AJ149: 127.27 | AK149: 155 | AL149: 1.28 | AM149: 121.43 | AN149: 184 | AO149: 1.26 | AP149: 113.95
C150: 남 | D150: 1,176 | E150: 1.39 | G150: 88 | H150: 1.27 | J150: 43 | K150: 1.56 | M150: 69 | N150: 1.11 | P150: 99 | Q150: 1.38 | S150: 196 | T150: 1.47 | V150: 128 | W150: 1.38 | Y150: 97 | Z150: 1.17 | AB150: 149 | AC150: 1.85 | AE150: 68 | AF150: 1.02 | AH150: 56 | AI150: 1.73 | AK150: 85 | AL150: 1.51 | AN150: 98 | AO150: 1.39
C151: 여 | D151: 1,079 | E151: 1.32 | G151: 86 | H151: 1.36 | J151: 30 | K151: 1.19 | M151: 49 | N151: 0.81 | P151: 106 | Q151: 1.44 | S151: 224 | T151: 1.66 | V151: 118 | W151: 1.41 | Y151: 80 | Z151: 1.03 | AB151: 108 | AC151: 1.40 | AE151: 78 | AF151: 1.36 | AH151: 44 | AI151: 1.67 | AK151: 70 | AL151: 1.09 | AN151: 86 | AO151: 1.14
B152: 47세 | C152: 계 | D152: 2,253 | E152: 1.35 | F152: 106.89 | G152: 138 | H152: 1.04 | I152: 133.90 | J152: 68 | K152: 1.28 | L152: 161.54 | M152: 151 | N152: 1.23 | O152: 122.06 | P152: 204 | Q152: 1.40 | R152: 112.50 | S152: 443 | T152: 1.65 | U152: 76.49 | V152: 248 | W152: 1.41 | X152: 123.42 | Y152: 210 | Z152: 1.31 | AA152: 85.84 | AB152: 237 | AC152: 1.50 | AD152: 119.44 | AE152: 172 | AF152: 1.39 | AG152: 115.00 | AH152: 97 | AI152: 1.65 | AJ152: 136.59 | AK152: 133 | AL152: 1.10 | AM152: 133.33 | AN152: 152 | AO152: 1.04 | AP152: 92.41
C153: 남 | D153: 1,164 | E153: 1.38 | G153: 79 | H153: 1.14 | J153: 42 | K153: 1.52 | M153: 83 | N153: 1.33 | P153: 108 | Q153: 1.51 | S153: 192 | T153: 1.44 | V153: 137 | W153: 1.48 | Y153: 97 | Z153: 1.17 | AB153: 129 | AC153: 1.60 | AE153: 92 | AF153: 1.38 | AH153: 56 | AI153: 1.73 | AK153: 76 | AL153: 1.35 | AN153: 73 | AO153: 1.04
C154: 여 | D154: 1,089 | E154: 1.33 | G154: 59 | H154: 0.93 | J154: 26 | K154: 1.03 | M154: 68 | N154: 1.13 | P154: 96 | Q154: 1.31 | S154: 251 | T154: 1.86 | V154: 111 | W154: 1.33 | Y154: 113 | Z154: 1.45 | AB154: 108 | AC154: 1.40 | AE154: 80 | AF154: 1.39 | AH154: 41 | AI154: 1.55 | AK154: 57 | AL154: 0.88 | AN154: 79 | AO154: 1.05
B155: 48세 | C155: 계 | D155: 2,321 | E155: 1.39 | F155: 104.31 | G155: 173 | H155: 1.30 | I155: 143.66 | J155: 65 | K155: 1.23 | L155: 124.14 | M155: 150 | N155: 1.22 | O155: 167.86 | P155: 200 | Q155: 1.38 | R155: 96.08 | S155: 425 | T155: 1.59 | U155: 88.89 | V155: 232 | W155: 1.32 | X155: 123.08 | Y155: 206 | Z155: 1.28 | AA155: 116.84 | AB155: 264 | AC155: 1.67 | AD155: 116.39 | AE155: 168 | AF155: 1.35 | AG155: 110.00 | AH155: 99 | AI155: 1.68 | AJ155: 106.25 | AK155: 147 | AL155: 1.22 | AM155: 63.33 | AN155: 192 | AO155: 1.32 | AP155: 68.42
C156: 남 | D156: 1,185 | E156: 1.40 | G156: 102 | H156: 1.47 | J156: 36 | K156: 1.30 | M156: 94 | N156: 1.51 | P156: 98 | Q156: 1.37 | S156: 200 | T156: 1.50 | V156: 128 | W156: 1.38 | Y156: 111 | Z156: 1.34 | AB156: 142 | AC156: 1.76 | AE156: 88 | AF156: 1.32 | AH156: 51 | AI156: 1.57 | AK156: 57 | AL156: 1.01 | AN156: 78 | AO156: 1.11
C157: 여 | D157: 1,136 | E157: 1.39 | G157: 71 | H157: 1.12 | J157: 29 | K157: 1.15 | M157: 56 | N157: 0.93 | P157: 102 | Q157: 1.39 | S157: 225 | T157: 1.67 | V157: 104 | W157: 1.24 | Y157: 95 | Z157: 1.22 | AB157: 122 | AC157: 1.58 | AE157: 80 | AF157: 1.39 | AH157: 48 | AI157: 1.82 | AK157: 90 | AL157: 1.40 | AN157: 114 | AO157: 1.52
B158: 49세 | C158: 계 | D158: 2,380 | E158: 1.43 | F158: 98.50 | G158: 167 | H158: 1.26 | I158: 122.67 | J158: 67 | K158: 1.27 | L158: 97.06 | M158: 153 | N158: 1.25 | O158: 104.00 | P158: 231 | Q158: 1.59 | R158: 106.25 | S158: 444 | T158: 1.66 | U158: 79.03 | V158: 263 | W158: 1.49 | X158: 136.94 | Y158: 225 | Z158: 1.40 | AA158: 69.17 | AB158: 221 | AC158: 1.40 | AD158: 104.63 | AE158: 180 | AF158: 1.45 | AG158: 85.57 | AH158: 92 | AI158: 1.56 | AJ158: 148.65 | AK158: 132 | AL158: 1.09 | AM158: 91.30 | AN158: 205 | AO158: 1.41 | AP158: 105.00
C159: 남 | D159: 1,181 | E159: 1.40 | G159: 92 | H159: 1.32 | J159: 33 | K159: 1.19 | M159: 78 | N159: 1.25 | P159: 119 | Q159: 1.66 | S159: 196 | T159: 1.47 | V159: 152 | W159: 1.64 | Y159: 92 | Z159: 1.11 | AB159: 113 | AC159: 1.40 | AE159: 83 | AF159: 1.25 | AH159: 55 | AI159: 1.69 | AK159: 63 | AL159: 1.12 | AN159: 105 | AO159: 1.49
C160: 여 | D160: 1,199 | E160: 1.46 | G160: 75 | H160: 1.18 | J160: 34 | K160: 1.34 | M160: 75 | N160: 1.25 | P160: 112 | Q160: 1.52 | S160: 248 | T160: 1.84 | V160: 111 | W160: 1.33 | Y160: 133 | Z160: 1.71 | AB160: 108 | AC160: 1.40 | AE160: 97 | AF160: 1.69 | AH160: 37 | AI160: 1.40 | AK160: 69 | AL160: 1.07 | AN160: 100 | AO160: 1.33
B161: 50세 | C161: 계 | D161: 2,641 | E161: 1.59 | F161: 101.76 | G161: 178 | H161: 1.34 | I161: 109.41 | J161: 84 | K161: 1.59 | L161: 127.03 | M161: 176 | N161: 1.44 | O161: 104.65 | P161: 210 | Q161: 1.45 | R161: 103.88 | S161: 502 | T161: 1.87 | U161: 78.01 | V161: 300 | W161: 1.70 | X161: 100.00 | Y161: 260 | Z161: 1.62 | AA161: 113.11 | AB161: 229 | AC161: 1.45 | AD161: 133.67 | AE161: 209 | AF161: 1.69 | AG161: 120.00 | AH161: 100 | AI161: 1.70 | AJ161: 150.00 | AK161: 178 | AL161: 1.47 | AM161: 106.98 | AN161: 215 | AO161: 1.48 | AP161: 72.00
C162: 남 | D162: 1,332 | E162: 1.58 | G162: 93 | H162: 1.34 | J162: 47 | K162: 1.70 | M162: 90 | N162: 1.44 | P162: 107 | Q162: 1.49 | S162: 220 | T162: 1.66 | V162: 150 | W162: 1.62 | Y162: 138 | Z162: 1.67 | AB162: 131 | AC162: 1.62 | AE162: 114 | AF162: 1.72 | AH162: 60 | AI162: 1.85 | AK162: 92 | AL162: 1.64 | AN162: 90 | AO162: 1.28
C163: 여 | D163: 1,309 | E163: 1.60 | G163: 85 | H163: 1.34 | J163: 37 | K163: 1.46 | M163: 86 | N163: 1.43 | P163: 103 | Q163: 1.40 | S163: 282 | T163: 2.09 | V163: 150 | W163: 1.79 | Y163: 122 | Z163: 1.56 | AB163: 98 | AC163: 1.27 | AE163: 95 | AF163: 1.65 | AH163: 40 | AI163: 1.52 | AK163: 86 | AL163: 1.33 | AN163: 125 | AO163: 1.66
B164: 51세 | C164: 계 | D164: 3,020 | E164: 1.81 | F164: 103.92 | G164: 193 | H164: 1.45 | I164: 160.81 | J164: 93 | K164: 1.76 | L164: 126.83 | M164: 217 | N164: 1.77 | O164: 106.67 | P164: 306 | Q164: 2.11 | R164: 93.67 | S164: 551 | T164: 2.06 | U164: 88.05 | V164: 338 | W164: 1.92 | X164: 123.84 | Y164: 262 | Z164: 1.63 | AA164: 120.17 | AB164: 252 | AC164: 1.59 | AD164: 88.06 | AE164: 221 | AF164: 1.78 | AG164: 145.56 | AH164: 112 | AI164: 1.90 | AJ164: 138.30 | AK164: 202 | AL164: 1.67 | AM164: 90.57 | AN164: 273 | AO164: 1.88 | AP164: 67.48
C165: 남 | D165: 1,539 | E165: 1.82 | G165: 119 | H165: 1.71 | J165: 52 | K165: 1.88 | M165: 112 | N165: 1.80 | P165: 148 | Q165: 2.06 | S165: 258 | T165: 1.94 | V165: 187 | W165: 2.02 | Y165: 143 | Z165: 1.73 | AB165: 118 | AC165: 1.46 | AE165: 131 | AF165: 1.97 | AH165: 65 | AI165: 2.00 | AK165: 96 | AL165: 1.71 | AN165: 110 | AO165: 1.56
C166: 여 | D166: 1,481 | E166: 1.81 | G166: 74 | H166: 1.17 | J166: 41 | K166: 1.62 | M166: 105 | N166: 1.74 | P166: 158 | Q166: 2.15 | S166: 293 | T166: 2.17 | V166: 151 | W166: 1.81 | Y166: 119 | Z166: 1.53 | AB166: 134 | AC166: 1.73 | AE166: 90 | AF166: 1.56 | AH166: 47 | AI166: 1.78 | AK166: 106 | AL166: 1.65 | AN166: 163 | AO166: 2.17
B167: 52세 | C167: 계 | D167: 3,119 | E167: 1.87 | F167: 99.81 | G167: 223 | H167: 1.68 | I167: 139.78 | J167: 105 | K167: 1.98 | L167: 133.33 | M167: 218 | N167: 1.78 | O167: 100.00 | P167: 318 | Q167: 2.19 | R167: 80.68 | S167: 578 | T167: 2.16 | U167: 83.49 | V167: 327 | W167: 1.86 | X167: 128.67 | Y167: 272 | Z167: 1.69 | AA167: 109.23 | AB167: 267 | AC167: 1.69 | AD167: 93.48 | AE167: 258 | AF167: 2.08 | AG167: 128.32 | AH167: 107 | AI167: 1.82 | AJ167: 132.61 | AK167: 191 | AL167: 1.58 | AM167: 80.19 | AN167: 255 | AO167: 1.75 | AP167: 73.47
C168: 남 | D168: 1,558 | E168: 1.84 | G168: 130 | H168: 1.87 | J168: 60 | K168: 2.17 | M168: 109 | N168: 1.75 | P168: 142 | Q168: 1.98 | S168: 263 | T168: 1.98 | V168: 184 | W168: 1.99 | Y168: 142 | Z168: 1.72 | AB168: 129 | AC168: 1.60 | AE168: 145 | AF168: 2.18 | AH168: 61 | AI168: 1.88 | AK168: 85 | AL168: 1.51 | AN168: 108 | AO168: 1.53
C169: 여 | D169: 1,561 | E169: 1.90 | G169: 93 | H169: 1.47 | J169: 45 | K169: 1.78 | M169: 109 | N169: 1.81 | P169: 176 | Q169: 2.39 | S169: 315 | T169: 2.34 | V169: 143 | W169: 1.71 | Y169: 130 | Z169: 1.67 | AB169: 138 | AC169: 1.78 | AE169: 113 | AF169: 1.96 | AH169: 46 | AI169: 1.74 | AK169: 106 | AL169: 1.65 | AN169: 147 | AO169: 1.96
B170: 53세 | C170: 계 | D170: 3,024 | E170: 1.82 | F170: 99.87 | G170: 195 | H170: 1.47 | I170: 121.59 | J170: 112 | K170: 2.12 | L170: 138.30 | M170: 218 | N170: 1.78 | O170: 100.00 | P170: 275 | Q170: 1.89 | R170: 92.31 | S170: 618 | T170: 2.31 | U170: 80.70 | V170: 336 | W170: 1.91 | X170: 125.50 | Y170: 258 | Z170: 1.61 | AA170: 124.35 | AB170: 245 | AC170: 1.55 | AD170: 84.21 | AE170: 229 | AF170: 1.85 | AG170: 151.65 | AH170: 104 | AI170: 1.77 | AJ170: 131.11 | AK170: 172 | AL170: 1.43 | AM170: 70.30 | AN170: 262 | AO170: 1.80 | AP170: 74.67
C171: 남 | D171: 1,511 | E171: 1.79 | G171: 107 | H171: 1.54 | J171: 65 | K171: 2.35 | M171: 109 | N171: 1.75 | P171: 132 | Q171: 1.84 | S171: 276 | T171: 2.08 | V171: 187 | W171: 2.02 | Y171: 143 | Z171: 1.73 | AB171: 112 | AC171: 1.39 | AE171: 138 | AF171: 2.08 | AH171: 59 | AI171: 1.82 | AK171: 71 | AL171: 1.26 | AN171: 112 | AO171: 1.59
C172: 여 | D172: 1,513 | E172: 1.85 | G172: 88 | H172: 1.39 | J172: 47 | K172: 1.86 | M172: 109 | N172: 1.81 | P172: 143 | Q172: 1.95 | S172: 342 | T172: 2.54 | V172: 149 | W172: 1.78 | Y172: 115 | Z172: 1.47 | AB172: 133 | AC172: 1.72 | AE172: 91 | AF172: 1.58 | AH172: 45 | AI172: 1.71 | AK172: 101 | AL172: 1.57 | AN172: 150 | AO172: 1.99
B173: 54세 | C173: 계 | D173: 3,415 | E173: 2.05 | F173: 103.15 | G173: 218 | H173: 1.64 | I173: 129.47 | J173: 103 | K173: 1.95 | L173: 134.09 | M173: 237 | N173: 1.93 | O173: 113.51 | P173: 318 | Q173: 2.19 | R173: 88.17 | S173: 622 | T173: 2.32 | U173: 87.92 | V173: 388 | W173: 2.20 | X173: 115.56 | Y173: 326 | Z173: 2.03 | AA173: 98.78 | AB173: 253 | AC173: 1.60 | AD173: 94.62 | AE173: 263 | AF173: 2.12 | AG173: 143.52 | AH173: 134 | AI173: 2.28 | AJ173: 116.13 | AK173: 237 | AL173: 1.96 | AM173: 75.56 | AN173: 316 | AO173: 2.17 | AP173: 107.89
C174: 남 | D174: 1,734 | E174: 2.05 | G174: 123 | H174: 1.77 | J174: 59 | K174: 2.14 | M174: 126 | N174: 2.02 | P174: 149 | Q174: 2.08 | S174: 291 | T174: 2.19 | V174: 208 | W174: 2.25 | Y174: 162 | Z174: 1.96 | AB174: 123 | AC174: 1.52 | AE174: 155 | AF174: 2.33 | AH174: 72 | AI174: 2.22 | AK174: 102 | AL174: 1.81 | AN174: 164 | AO174: 2.33
C175: 여 | D175: 1,681 | E175: 2.05 | G175: 95 | H175: 1.50 | J175: 44 | K175: 1.74 | M175: 111 | N175: 1.84 | P175: 169 | Q175: 2.30 | S175: 331 | T175: 2.45 | V175: 180 | W175: 2.15 | Y175: 164 | Z175: 2.10 | AB175: 130 | AC175: 1.68 | AE175: 108 | AF175: 1.88 | AH175: 62 | AI175: 2.35 | AK175: 135 | AL175: 2.10 | AN175: 152 | AO175: 2.02
B176: 55세 | C176: 계 | D176: 3,404 | E176: 2.04 | F176: 103.71 | G176: 224 | H176: 1.69 | I176: 138.30 | J176: 109 | K176: 2.06 | L176: 153.49 | M176: 225 | N176: 1.84 | O176: 104.55 | P176: 346 | Q176: 2.38 | R176: 104.73 | S176: 642 | T176: 2.40 | U176: 102.52 | V176: 340 | W176: 1.93 | X176: 113.84 | Y176: 294 | Z176: 1.83 | AA176: 94.70 | AB176: 268 | AC176: 1.69 | AD176: 103.03 | AE176: 264 | AF176: 2.13 | AG176: 100.00 | AH176: 130 | AI176: 2.21 | AJ176: 132.14 | AK176: 266 | AL176: 2.20 | AM176: 72.73 | AN176: 296 | AO176: 2.03 | AP176: 92.21
C177: 남 | D177: 1,733 | E177: 2.05 | G177: 130 | H177: 1.87 | J177: 66 | K177: 2.39 | M177: 115 | N177: 1.84 | P177: 177 | Q177: 2.47 | S177: 325 | T177: 2.45 | V177: 181 | W177: 1.96 | Y177: 143 | Z177: 1.73 | AB177: 136 | AC177: 1.68 | AE177: 132 | AF177: 1.99 | AH177: 74 | AI177: 2.28 | AK177: 112 | AL177: 1.99 | AN177: 142 | AO177: 2.02
C178: 여 | D178: 1,671 | E178: 2.04 | G178: 94 | H178: 1.48 | J178: 43 | K178: 1.70 | M178: 110 | N178: 1.83 | P178: 169 | Q178: 2.30 | S178: 317 | T178: 2.35 | V178: 159 | W178: 1.90 | Y178: 151 | Z178: 1.94 | AB178: 132 | AC178: 1.71 | AE178: 132 | AF178: 2.29 | AH178: 56 | AI178: 2.12 | AK178: 154 | AL178: 2.39 | AN178: 154 | AO178: 2.05
B179: 56세 | C179: 계 | D179: 3,736 | E179: 2.24 | F179: 103.15 | G179: 287 | H179: 2.16 | I179: 137.19 | J179: 113 | K179: 2.13 | L179: 130.61 | M179: 266 | N179: 2.17 | O179: 107.81 | P179: 357 | Q179: 2.46 | R179: 99.44 | S179: 650 | T179: 2.43 | U179: 88.41 | V179: 416 | W179: 2.36 | X179: 118.95 | Y179: 350 | Z179: 2.18 | AA179: 112.12 | AB179: 279 | AC179: 1.76 | AD179: 96.48 | AE179: 293 | AF179: 2.36 | AG179: 107.80 | AH179: 112 | AI179: 1.90 | AJ179: 148.89 | AK179: 262 | AL179: 2.17 | AM179: 64.78 | AN179: 351 | AO179: 2.41 | AP179: 100.57
C180: 남 | D180: 1,897 | E180: 2.24 | G180: 166 | H180: 2.39 | J180: 64 | K180: 2.32 | M180: 138 | N180: 2.21 | P180: 178 | Q180: 2.48 | S180: 305 | T180: 2.29 | V180: 226 | W180: 2.44 | Y180: 185 | Z180: 2.24 | AB180: 137 | AC180: 1.70 | AE180: 152 | AF180: 2.29 | AH180: 67 | AI180: 2.06 | AK180: 103 | AL180: 1.83 | AN180: 176 | AO180: 2.50
C181: 여 | D181: 1,839 | E181: 2.24 | G181: 121 | H181: 1.91 | J181: 49 | K181: 1.94 | M181: 128 | N181: 2.12 | P181: 179 | Q181: 2.43 | S181: 345 | T181: 2.56 | V181: 190 | W181: 2.27 | Y181: 165 | Z181: 2.12 | AB181: 142 | AC181: 1.83 | AE181: 141 | AF181: 2.45 | AH181: 45 | AI181: 1.71 | AK181: 159 | AL181: 2.47 | AN181: 175 | AO181: 2.33
B182: 57세 | C182: 계 | D182: 3,506 | E182: 2.11 | F182: 101.73 | G182: 276 | H182: 2.08 | I182: 104.44 | J182: 101 | K182: 1.91 | L182: 134.88 | M182: 274 | N182: 2.24 | O182: 73.42 | P182: 318 | Q182: 2.19 | R182: 103.85 | S182: 589 | T182: 2.20 | U182: 106.67 | V182: 336 | W182: 1.91 | X182: 128.57 | Y182: 336 | Z182: 2.09 | AA182: 114.01 | AB182: 264 | AC182: 1.67 | AD182: 107.87 | AE182: 279 | AF182: 2.25 | AG182: 96.48 | AH182: 116 | AI182: 1.97 | AJ182: 118.87 | AK182: 269 | AL182: 2.23 | AM182: 81.76 | AN182: 348 | AO182: 2.39 | AP182: 86.10
C183: 남 | D183: 1,768 | E183: 2.09 | G183: 141 | H183: 2.03 | J183: 58 | K183: 2.10 | M183: 116 | N183: 1.86 | P183: 162 | Q183: 2.26 | S183: 304 | T183: 2.29 | V183: 189 | W183: 2.04 | Y183: 179 | Z183: 2.17 | AB183: 137 | AC183: 1.70 | AE183: 137 | AF183: 2.06 | AH183: 63 | AI183: 1.94 | AK183: 121 | AL183: 2.15 | AN183: 161 | AO183: 2.29
C184: 여 | D184: 1,738 | E184: 2.12 | G184: 135 | H184: 2.13 | J184: 43 | K184: 1.70 | M184: 158 | N184: 2.62 | P184: 156 | Q184: 2.12 | S184: 285 | T184: 2.11 | V184: 147 | W184: 1.76 | Y184: 157 | Z184: 2.01 | AB184: 127 | AC184: 1.64 | AE184: 142 | AF184: 2.47 | AH184: 53 | AI184: 2.01 | AK184: 148 | AL184: 2.30 | AN184: 187 | AO184: 2.49
B185: 58세 | C185: 계 | D185: 3,218 | E185: 1.93 | F185: 101.38 | G185: 236 | H185: 1.78 | I185: 136.00 | J185: 101 | K185: 1.91 | L185: 102.00 | M185: 232 | N185: 1.89 | O185: 98.29 | P185: 300 | Q185: 2.07 | R185: 102.70 | S185: 545 | T185: 2.04 | U185: 106.44 | V185: 341 | W185: 1.94 | X185: 97.11 | Y185: 317 | Z185: 1.97 | AA185: 84.30 | AB185: 271 | AC185: 1.71 | AD185: 94.96 | AE185: 237 | AF185: 1.91 | AG185: 130.10 | AH185: 99 | AI185: 1.68 | AJ185: 110.64 | AK185: 245 | AL185: 2.03 | AM185: 94.44 | AN185: 294 | AO185: 2.02 | AP185: 84.91
C186: 남 | D186: 1,620 | E186: 1.92 | G186: 136 | H186: 1.96 | J186: 51 | K186: 1.85 | M186: 115 | N186: 1.84 | P186: 152 | Q186: 2.12 | S186: 281 | T186: 2.11 | V186: 168 | W186: 1.81 | Y186: 145 | Z186: 1.75 | AB186: 132 | AC186: 1.63 | AE186: 134 | AF186: 2.02 | AH186: 52 | AI186: 1.60 | AK186: 119 | AL186: 2.12 | AN186: 135 | AO186: 1.92
C187: 여 | D187: 1,598 | E187: 1.95 | G187: 100 | H187: 1.58 | J187: 50 | K187: 1.98 | M187: 117 | N187: 1.94 | P187: 148 | Q187: 2.01 | S187: 264 | T187: 1.96 | V187: 173 | W187: 2.07 | Y187: 172 | Z187: 2.21 | AB187: 139 | AC187: 1.80 | AE187: 103 | AF187: 1.79 | AH187: 47 | AI187: 1.78 | AK187: 126 | AL187: 1.96 | AN187: 159 | AO187: 2.11
B188: 59세 | C188: 계 | D188: 3,059 | E188: 1.84 | F188: 106.55 | G188: 221 | H188: 1.66 | I188: 97.32 | J188: 93 | K188: 1.76 | L188: 126.83 | M188: 236 | N188: 1.93 | O188: 110.71 | P188: 296 | Q188: 2.04 | R188: 85.00 | S188: 519 | T188: 1.94 | U188: 118.07 | V188: 345 | W188: 1.96 | X188: 106.59 | Y188: 274 | Z188: 1.71 | AA188: 110.77 | AB188: 229 | AC188: 1.45 | AD188: 90.83 | AE188: 233 | AF188: 1.88 | AG188: 145.26 | AH188: 96 | AI188: 1.63 | AJ188: 200.00 | AK188: 234 | AL188: 1.94 | AM188: 90.24 | AN188: 283 | AO188: 1.94 | AP188: 87.42
C189: 남 | D189: 1,578 | E189: 1.87 | G189: 109 | H189: 1.57 | J189: 52 | K189: 1.88 | M189: 124 | N189: 1.99 | P189: 136 | Q189: 1.90 | S189: 281 | T189: 2.11 | V189: 178 | W189: 1.92 | Y189: 144 | Z189: 1.74 | AB189: 109 | AC189: 1.35 | AE189: 138 | AF189: 2.08 | AH189: 64 | AI189: 1.97 | AK189: 111 | AL189: 1.97 | AN189: 132 | AO189: 1.88
C190: 여 | D190: 1,481 | E190: 1.81 | G190: 112 | H190: 1.77 | J190: 41 | K190: 1.62 | M190: 112 | N190: 1.86 | P190: 160 | Q190: 2.18 | S190: 238 | T190: 1.76 | V190: 167 | W190: 2.00 | Y190: 130 | Z190: 1.67 | AB190: 120 | AC190: 1.55 | AE190: 95 | AF190: 1.65 | AH190: 32 | AI190: 1.21 | AK190: 123 | AL190: 1.91 | AN190: 151 | AO190: 2.01
B191: 60세 | C191: 계 | D191: 3,160 | E191: 1.90 | F191: 99.24 | G191: 284 | H191: 2.14 | I191: 105.80 | J191: 103 | K191: 1.95 | L191: 101.96 | M191: 239 | N191: 1.95 | O191: 100.84 | P191: 260 | Q191: 1.79 | R191: 76.87 | S191: 479 | T191: 1.79 | U191: 107.36 | V191: 361 | W191: 2.05 | X191: 100.56 | Y191: 314 | Z191: 1.95 | AA191: 92.64 | AB191: 241 | AC191: 1.52 | AD191: 113.27 | AE191: 241 | AF191: 1.94 | AG191: 113.27 | AH191: 96 | AI191: 1.63 | AJ191: 100.00 | AK191: 257 | AL191: 2.13 | AM191: 91.79 | AN191: 285 | AO191: 1.96 | AP191: 91.28
C192: 남 | D192: 1,574 | E192: 1.86 | G192: 146 | H192: 2.10 | J192: 52 | K192: 1.88 | M192: 120 | N192: 1.92 | P192: 113 | Q192: 1.58 | S192: 248 | T192: 1.87 | V192: 181 | W192: 1.96 | Y192: 151 | Z192: 1.83 | AB192: 128 | AC192: 1.59 | AE192: 128 | AF192: 1.93 | AH192: 48 | AI192: 1.48 | AK192: 123 | AL192: 2.19 | AN192: 136 | AO192: 1.93
C193: 여 | D193: 1,586 | E193: 1.93 | G193: 138 | H193: 2.18 | J193: 51 | K193: 2.02 | M193: 119 | N193: 1.98 | P193: 147 | Q193: 2.00 | S193: 231 | T193: 1.71 | V193: 180 | W193: 2.15 | Y193: 163 | Z193: 2.09 | AB193: 113 | AC193: 1.46 | AE193: 113 | AF193: 1.96 | AH193: 48 | AI193: 1.82 | AK193: 134 | AL193: 2.08 | AN193: 149 | AO193: 1.98
B194: 61세 | C194: 계 | D194: 2,765 | E194: 1.66 | F194: 101.68 | G194: 238 | H194: 1.79 | I194: 78.95 | J194: 82 | K194: 1.55 | L194: 121.62 | M194: 224 | N194: 1.83 | O194: 124.00 | P194: 235 | Q194: 1.62 | R194: 117.59 | S194: 432 | T194: 1.61 | U194: 104.74 | V194: 322 | W194: 1.83 | X194: 110.46 | Y194: 255 | Z194: 1.59 | AA194: 112.50 | AB194: 195 | AC194: 1.23 | AD194: 91.18 | AE194: 192 | AF194: 1.55 | AG194: 115.73 | AH194: 100 | AI194: 1.70 | AJ194: 117.39 | AK194: 193 | AL194: 1.60 | AM194: 91.09 | AN194: 297 | AO194: 2.04 | AP194: 73.68
C195: 남 | D195: 1,394 | E195: 1.65 | G195: 105 | H195: 1.51 | J195: 45 | K195: 1.63 | M195: 124 | N195: 1.99 | P195: 127 | Q195: 1.77 | S195: 221 | T195: 1.66 | V195: 169 | W195: 1.83 | Y195: 135 | Z195: 1.63 | AB195: 93 | AC195: 1.15 | AE195: 103 | AF195: 1.55 | AH195: 54 | AI195: 1.66 | AK195: 92 | AL195: 1.64 | AN195: 126 | AO195: 1.79
C196: 여 | D196: 1,371 | E196: 1.67 | G196: 133 | H196: 2.10 | J196: 37 | K196: 1.46 | M196: 100 | N196: 1.66 | P196: 108 | Q196: 1.47 | S196: 211 | T196: 1.56 | V196: 153 | W196: 1.83 | Y196: 120 | Z196: 1.54 | AB196: 102 | AC196: 1.32 | AE196: 89 | AF196: 1.55 | AH196: 46 | AI196: 1.74 | AK196: 101 | AL196: 1.57 | AN196: 171 | AO196: 2.27
B197: 62세 | C197: 계 | D197: 3,085 | E197: 1.85 | F197: 101.77 | G197: 248 | H197: 1.87 | I197: 95.28 | J197: 103 | K197: 1.95 | L197: 87.27 | M197: 234 | N197: 1.91 | O197: 129.41 | P197: 311 | Q197: 2.14 | R197: 78.74 | S197: 460 | T197: 1.72 | U197: 92.47 | V197: 364 | W197: 2.07 | X197: 98.91 | Y197: 276 | Z197: 1.72 | AA197: 119.05 | AB197: 214 | AC197: 1.35 | AD197: 120.62 | AE197: 226 | AF197: 1.82 | AG197: 137.89 | AH197: 93 | AI197: 1.58 | AJ197: 82.35 | AK197: 234 | AL197: 1.94 | AM197: 98.31 | AN197: 322 | AO197: 2.21 | AP197: 98.77
C198: 남 | D198: 1,556 | E198: 1.84 | G198: 121 | H198: 1.74 | J198: 48 | K198: 1.74 | M198: 132 | N198: 2.12 | P198: 137 | Q198: 1.91 | S198: 221 | T198: 1.66 | V198: 181 | W198: 1.96 | Y198: 150 | Z198: 1.81 | AB198: 117 | AC198: 1.45 | AE198: 131 | AF198: 1.97 | AH198: 42 | AI198: 1.29 | AK198: 116 | AL198: 2.06 | AN198: 160 | AO198: 2.27
C199: 여 | D199: 1,529 | E199: 1.86 | G199: 127 | H199: 2.00 | J199: 55 | K199: 2.17 | M199: 102 | N199: 1.69 | P199: 174 | Q199: 2.37 | S199: 239 | T199: 1.77 | V199: 183 | W199: 2.19 | Y199: 126 | Z199: 1.62 | AB199: 97 | AC199: 1.25 | AE199: 95 | AF199: 1.65 | AH199: 51 | AI199: 1.93 | AK199: 118 | AL199: 1.83 | AN199: 162 | AO199: 2.15
B200: 63세 | C200: 계 | D200: 3,079 | E200: 1.85 | F200: 98.39 | G200: 266 | H200: 2.00 | I200: 82.19 | J200: 106 | K200: 2.00 | L200: 112.00 | M200: 259 | N200: 2.11 | O200: 99.23 | P200: 305 | Q200: 2.10 | R200: 95.51 | S200: 426 | T200: 1.59 | U200: 113.00 | V200: 305 | W200: 1.73 | X200: 96.77 | Y200: 286 | Z200: 1.78 | AA200: 104.29 | AB200: 231 | AC200: 1.46 | AD200: 95.76 | AE200: 229 | AF200: 1.85 | AG200: 108.18 | AH200: 95 | AI200: 1.61 | AJ200: 82.69 | AK200: 252 | AL200: 2.09 | AM200: 95.35 | AN200: 319 | AO200: 2.19 | AP200: 92.17
C201: 남 | D201: 1,527 | E201: 1.81 | G201: 120 | H201: 1.73 | J201: 56 | K201: 2.03 | M201: 129 | N201: 2.07 | P201: 149 | Q201: 2.08 | S201: 226 | T201: 1.70 | V201: 150 | W201: 1.62 | Y201: 146 | Z201: 1.77 | AB201: 113 | AC201: 1.40 | AE201: 119 | AF201: 1.79 | AH201: 43 | AI201: 1.32 | AK201: 123 | AL201: 2.19 | AN201: 153 | AO201: 2.17
C202: 여 | D202: 1,552 | E202: 1.89 | G202: 146 | H202: 2.30 | J202: 50 | K202: 1.98 | M202: 130 | N202: 2.16 | P202: 156 | Q202: 2.12 | S202: 200 | T202: 1.48 | V202: 155 | W202: 1.85 | Y202: 140 | Z202: 1.80 | AB202: 118 | AC202: 1.52 | AE202: 110 | AF202: 1.91 | AH202: 52 | AI202: 1.97 | AK202: 129 | AL202: 2.00 | AN202: 166 | AO202: 2.21
... 141 more rows

Sheet 주민수 및 세대현황(대전광역시)
B2: 주민수 및 세대현황
B3: 행정기관: | C3: 대전광역시
B4: 작성기준: | C4: 2025.08 현재 | H4: 출력일자 : 2025.09.01 | L4: (단위 : 명)
B5: 행정기관 | D5: 인 구 수 | G5: 구 성 비 | J5: 성비 | K5: 세대수 | L5: 세대당인구
D6: 계 | E6: 남 | F6: 여 | G6: 계 | H6: 남 | I6: 여
B7: 대전광역시 | D7: 1,441,596 | E7: 718,458 | F7: 723,138 | G7: 100.00 | H7: 49.84 | I7: 50.16 | J7: 99.35 | K7: 696,342 | L7: 2.07
B8: 동구 | D8: 219,501 | E8: 110,557 | F8: 108,944 | G8: 15.23 | H8: 7.67 | I8: 7.56 | J8: 101.48 | K8: 112,863 | L8: 1.94
B9: 중구 | D9: 225,986 | E9: 110,745 | F9: 115,241 | G9: 15.68 | H9: 7.68 | I9: 7.99 | J9: 96.10 | K9: 109,714 | L9: 2.06
B10: 서구 | D10: 463,243 | E10: 226,966 | F10: 236,277 | G10: 32.13 | H10: 15.74 | I10: 16.39 | J10: 96.06 | K10: 221,712 | L10: 2.09
B11: 유성구 | D11: 366,316 | E11: 185,628 | F11: 180,688 | G11: 25.41 | H11: 12.88 | I11: 12.53 | J11: 102.73 | K11: 170,901 | L11: 2.14
B12: 대덕구 | D12: 166,550 | E12: 84,562 | F12: 81,988 | G12: 11.55 | H12: 5.87 | I12: 5.69 | J12: 103.14 | K12: 81,152 | L12: 2.05
